{"text_format":"1","workbook":"xlsx","n_sheets":13,"sheets":["Programme","Chemistry for Life","Molecular Chemistry","Physical Chemistry","Neuroscience","Medical Epigenomics","Functional Genomics","Physics of Mol. and Mat.","Particle and Astrophysics","SMI","SIS","Science & Education","Selections"],"not_rendered":{"charts":0,"images":6,"macros":1,"external_links":0,"defined_names":12,"comments":0,"pivot_tables":0},"unopened":[],"bounds":{"document_bytes":16777216,"sheet_cells":100000,"rows_first":2000,"rows_last":500,"rows_between":2000,"halvings":0,"cell_chars":16384,"cell_head_chars":4096},"cells_cut":0,"cells_raw":0,"read":"whole","date_system":"1900"}

{"sheet":"Programme","index":0,"n_rows":6,"n_cols":13,"rows_kept":6,"cut":false,"hidden":false,"merged":[[1,12,2,15]]}
[null,"Request for approval of Master's Programme Science"]
[null,null,"Please select your specialization and starting year of the Master's programme",null,null,null,null,null,null,null,null,null,"Administrator tools"]
[null,null,"Then click on the 'Generate programme approval request form' button"]
[]
[null,"Specialization:","Please Select…"]
[null,"Starting year:","Please Select…"]

{"sheet":"Chemistry for Life","index":1,"n_rows":194,"n_cols":7,"rows_kept":194,"cut":false,"hidden":true,"merged":[[187,1,192,6],[142,2,142,6],[143,2,143,6],[144,2,144,6],[145,2,145,6],[168,1,169,6],[131,2,131,6],[132,2,132,6],[140,1,140,2],[140,4,140,5],[141,2,141,6],[127,2,127,6],[128,2,128,6],[129,1,129,2],[129,4,129,5],[130,2,130,6],[123,1,123,2],[123,4,123,5],[124,2,124,6],[125,2,125,6],[126,2,126,6],[104,2,104,6],[105,2,105,6],[106,2,106,6],[107,2,107,6],[108,2,108,6],[8,2,8,6],[34,2,34,6],[29,2,29,6],[30,2,30,6],[33,2,33,6],[32,1,32,2],[32,4,32,5],[9,2,9,6],[10,2,10,6],[11,2,11,6],[12,2,12,6],[26,1,26,2],[26,4,26,5],[27,2,27,6],[28,2,28,6],[71,1,72,6],[90,1,95,6],[31,2,31,6],[47,2,47,6],[48,2,48,6],[43,1,43,2],[43,4,43,5],[44,2,44,6],[45,2,45,6],[46,2,46,6],[35,2,35,6]]}
["Laat deze kolom leeg, behalve de jaartallen en de scheidingswoorden"]
["2014, 2015"]
[null,"Request for approval Master's Programme Science - Research: Chemistry for life (Cohorts 2014, 2015)"]
[null,"This form can be used to submit your master's programme for approval by the examination board"]
[]
[]
[null,"Please complete the form and send via e-mail to: fnwi.examcies@science.ru.nl"]
[]
[null,"Student name:"]
[null,"Student number:"]
[null,"Starting date master:"]
[null,"E-mail:"]
[null,"Phone number:"]
[]
[]
[]
[null,"Compulsory courses specialisation (15 ec)",null,null,"Replaced by:"]
[null,"Course code","Course name","EC","Course code","Course name","EC"]
[null,"NWI-MOL401","Chemical Biology",3]
[null,"NWI-MOL402","Systems Chemistry",3]
[null,"NWI-MOL403","Organic Chemistry of Biomolecules",3]
[null,"NWI-MOL404","Instrumental analysis in (bio)molecular Chemistry",3]
[null,"NWI-MOL410","Omics",3]
[null,null,"sum:",{"$f":"SUMIFS(D19:D23, G19:G23, \"\",E19:E23,\"\",F19:F23,\"\")+SUM(G19:G23)","v":15}]
[]
[]
[null,"Specialisation related internship(60 ec) (optionally 45 or 90 ec)",null,60]
[null,"Title:"]
[null,"First supervisor:"]
[null,"Department:"]
[null,"Second supervisor:"]
[null,"Department:"]
[null,"Literature thesis (6 ec) NWI-MOL601",null,6]
[null,"Title essay/review:"]
[null,"Name supervisor:"]
[null,"Department:"]
[null,"If applicable: courses relevant to the internship (0 to 6 ec)"]
[null,"Course code","Course name","EC","Course code","Course name","EC"]
[]
[]
[null,null,"sum:",{"$f":"SUM(D27)","v":60}]
[]
[null,"Research internship in a second discipline (together with major internship this should add up to 90 ec)"]
[null,{"$f":"\"Specialisation related internship (\" &90 - D41&\" ec)\"","v":"Specialisation related internship (30 ec)"},null,30]
[null,"Title:"]
[null,"First supervisor:"]
[null,"Department:"]
[null,"Second supervisor:"]
[null,"Department:"]
[null,"If applicable: Courses relevant to the internship (0 to 6 ec)"]
[null,"Course code","Course name","EC","Course code","Course name","EC"]
[]
[]
[null,null,"sum:",{"$f":"SUM(D44)","v":30}]
[]
[null,"Philosophy (3 ec) + Scientific Master's courses (6 ec) + Free electives (6 ec)",null,null,"Replaced by:"]
[null,"Course code","Course name","EC","Course code","Course name","EC"]
[null,{"$f":"VLOOKUP(C58,filo_lijst,2,FALSE)","v":""},"Choose your philosophy course here",{"$f":"VLOOKUP(C58,filo_lijst,3,FALSE)","v":""}]
[]
[]
[null,null,"Free electives below"]
[]
[]
[]
[]
[null,null,"sum:",{"$f":"SUMIFS(D58:D65, G58:G65, \"\")+SUM(G58:G65)","v":0}]
[]
[]
[]
[null,"Total ECTS (120)",null,{"$f":"SUM(D66,D54,D41,D24)","v":105}]
[]
[null,"Honours ('judicium') is awarded  based on the nominal number of 120 EC required for the examination (or more than 120 ec, i.e. courses mentioned above) ; extracurricilar courses do not count for this honours (but will be mentioned on your diploma)."]
[]
[null,"Extra curricular courses (extra above 120 ects)"]
[null,"Course code","Course name","EC"]
[]
[]
[]
[]
[]
[]
[]
[]
[]
[]
[null,null,"sum:",{"$f":"SUM(D76:D85)","v":0}]
[]
[null,"Total ECTS overall:",null,{"$f":"D86+D70","v":105},"EC"]
[]
[null,"Comments:"]
[]
[]
[]
[]
[]
[]
["#scheidingswoordmeteenhashtag"]
["2016, 2017, 2018"]
[null,"Request for approval Master's Programme Science - Research: Chemistry for life (Cohorts 2016-2018)"]
[null,"This form can be used to submit your master's programme for approval by the examination board"]
[]
[]
[null,"Please complete the form and send via e-mail to: fnwi.examcies@science.ru.nl"]
[]
[null,"Student name:"]
[null,"Student number:"]
[null,"Starting date master:"]
[null,"E-mail:"]
[null,"Phone number:"]
[]
[]
[]
[null,"Compulsory courses specialisation + Career orientation (16 ec)",null,null,"Replaced by:"]
[null,"Course code","Course name","EC","Course code","Course name","EC"]
[null,"NWI-MOL401","Chemical Biology",3]
[null,"NWI-MOL402","Systems Chemistry",3]
[null,"NWI-MOL403","Organic Chemistry of Biomolecules",3]
[null,"NWI-MOL404","Instrumental analysis in (bio)molecular Chemistry",3]
[null,"NWI-MOL410","Omics",3]
[null,"NWI-MOL412","Career Orientation",1]
[null,null,"sum:",{"$f":"SUMIFS(D115:D120, G115:G120, \"\",E115:E120,\"\",F115:F120,\"\")+SUM(G115:G120)","v":16}]
[]
[]
[null,"Specialisation related internship (47-53 or 33-39 ec)"]
[null,"Title:"]
[null,"First supervisor:"]
[null,"Department:"]
[null,"Second supervisor:"]
[null,"Department:"]
[null,"Literature thesis (6 ec) NWI-MOL601",null,6]
[null,"Title essay/review:"]
[null,"Supervisor:"]
[null,"Department:"]
[null,"If applicable: courses relevant to the internship (0 to 6 ec)"]
[null,"Course code","Course name","EC","Course code","Course name","EC"]
[]
[]
[null,null,"sum:",{"$f":"SUM(D124,D130,D136:D137)","v":6},"This should add up to 59 or 45 EC"]
[]
[null,"Research internship in a second discipline (together with major internship this should add up to 89 ec)"]
[null,"Minor internship (24-30 or 38-44 ec)"]
[null,"Title:"]
[null,"First supervisor:"]
[null,"Department:"]
[null,"Second supervisor:"]
[null,"Department:"]
[null,"If applicable: Courses relevant to the internship (0 to 6 ec)"]
[null,"Course code","Course name","EC","Course code","Course name","EC"]
[]
[]
[null,null,"sum:",{"$f":"SUM(D141,D149:D150)","v":0},"This should add up to 30 or 44 EC"]
[]
[null,"Philosophy (3 ec) + Scientific Master's courses (6 ec) + Free electives (6 ec)",null,null,"Replaced by:"]
[null,"Course code","Course name","EC","Course code","Course name","EC"]
[null,{"$f":"VLOOKUP(C155,filo_lijst,2,FALSE)","v":""},"Choose your philosophy course here",{"$f":"VLOOKUP(C155,filo_lijst,3,FALSE)","v":""}]
[]
[]
[null,null,"Free electives below"]
[]
[]
[]
[]
[null,null,"sum:",{"$f":"SUMIFS(D155:D162, G155:G162, \"\")+SUM(G155:G162)","v":0}]
[]
[]
[]
[null,"Total ECTS (120)",null,{"$f":"SUM(D163,D151,D138,D121)","v":22}]
[]
[null,"Honours ('judicium') is awarded  based on the nominal number of 120 EC required for the examination (or more than 120 ec, i.e. courses mentioned above) ; extracurricilar courses do not count for this honours (but will be mentioned on your diploma)."]
[]
[null,"Extra curricular courses (extra above 120 ects)"]
[null,"Course code","Course name","EC"]
[]
[]
[]
[]
[]
[]
[]
[]
[]
[]
[null,null,"sum:",{"$f":"SUM(D173:D182)","v":0}]
[]
[null,"Total ECTS overall:",null,{"$f":"D183+D167","v":22},"EC"]
[]
[null,"Comments:"]
[]
[]
[]
[]
[]
[]
["#scheidingswoordmeteenhashtag"]

{"sheet":"Molecular Chemistry","index":2,"n_rows":194,"n_cols":7,"rows_kept":194,"cut":false,"hidden":true,"merged":[[32,1,32,2],[32,4,32,5],[8,2,8,6],[9,2,9,6],[10,2,10,6],[11,2,11,6],[12,2,12,6],[26,1,26,2],[26,4,26,5],[27,2,27,6],[28,2,28,6],[29,2,29,6],[30,2,30,6],[31,2,31,6],[90,1,95,6],[33,2,33,6],[34,2,34,6],[35,2,35,6],[43,1,43,2],[43,4,43,5],[44,2,44,6],[45,2,45,6],[46,2,46,6],[47,2,47,6],[48,2,48,6],[71,1,72,6],[129,1,129,2],[129,4,129,5],[104,2,104,6],[105,2,105,6],[106,2,106,6],[107,2,107,6],[108,2,108,6],[123,1,123,2],[123,4,123,5],[124,2,124,6],[125,2,125,6],[126,2,126,6],[127,2,127,6],[128,2,128,6],[187,1,192,6],[130,2,130,6],[131,2,131,6],[132,2,132,6],[140,1,140,2],[140,4,140,5],[141,2,141,6],[142,2,142,6],[143,2,143,6],[144,2,144,6],[145,2,145,6],[168,1,169,6]]}
["Laat deze kolom leeg, behalve de jaartallen en de scheidingswoorden"]
["2014, 2015"]
[null,"Request for approval Master's Programme Science - Research: Molecular Chemistry (Cohorts 2014, 2015)"]
[null,"This form can be used to submit your master's programme for approval by the examination board"]
[]
[]
[null,"Please complete the form and send via e-mail to: fnwi.examcies@science.ru.nl"]
[]
[null,"Student name:"]
[null,"Student number:"]
[null,"Starting date master:"]
[null,"E-mail:"]
[null,"Phone number:"]
[]
[]
[]
[null,"Compulsory courses specialisation (15 ec)",null,null,"Replaced by:"]
[null,"Course code","Course name","EC","Course code","Course name","EC"]
[null,"NWI-SM302","Advanced organic synthesis",3]
[null,"NWI-SM292A","Molecular Materials",3]
[null,"NWI-MOL402","Systems Chemistry",3]
[null,"NWI-MOL404","Instrumental analysis in (bio)molecular Chemistry",3]
[null,"NWI-SM019A","Polymer Chemistry",3]
[null,null,"sum:",{"$f":"SUMIFS(D19:D23, G19:G23, \"\",E19:E23,\"\",F19:F23,\"\")+SUM(G19:G23)","v":15}]
[]
[]
[null,"Specialisation related internship(60 ec) (optionally 45 or 90 ec)",null,60]
[null,"Title:"]
[null,"First supervisor:"]
[null,"Department:"]
[null,"Second supervisor:"]
[null,"Department:"]
[null,"Literature thesis (6 ec) NWI-MOL601",null,6]
[null,"Title essay/review:"]
[null,"Name supervisor:"]
[null,"Department:"]
[null,"If applicable: courses relevant to the internship (0 to 6 ec)"]
[null,"Course code","Course name","EC","Course code","Course name","EC"]
[]
[]
[null,null,"sum:",{"$f":"SUM(D27)","v":60}]
[]
[null,"Research internship in a second discipline (together with major internship this should add up to 90 ec)"]
[null,{"$f":"\"Specialisation related internship (\" &90 - D41&\" ec)\"","v":"Specialisation related internship (30 ec)"},null,30]
[null,"Title:"]
[null,"First supervisor:"]
[null,"Department:"]
[null,"Second supervisor:"]
[null,"Department:"]
[null,"If applicable: Courses relevant to the internship (0 to 6 ec)"]
[null,"Course code","Course name","EC","Course code","Course name","EC"]
[]
[]
[null,null,"sum:",{"$f":"SUM(D44)","v":30}]
[]
[null,"Philosophy (3 ec) + Scientific Master's courses (6 ec) + Free electives (6 ec)",null,null,"Replaced by:"]
[null,"Course code","Course name","EC","Course code","Course name","EC"]
[null,{"$f":"VLOOKUP(C58,filo_lijst,2,FALSE)","v":""},"Choose your philosophy course here",{"$f":"VLOOKUP(C58,filo_lijst,3,FALSE)","v":""}]
[]
[]
[null,null,"Free electives below"]
[]
[]
[]
[]
[null,null,"sum:",{"$f":"SUMIFS(D58:D65, G58:G65, \"\")+SUM(G58:G65)","v":0}]
[]
[]
[]
[null,"Total ECTS (120)",null,{"$f":"SUM(D66,D54,D41,D24)","v":105}]
[]
[null,"Honours ('judicium') is awarded  based on the nominal number of 120 EC required for the examination (or more than 120 ec, i.e. courses mentioned above) ; extracurricilar courses do not count for this honours (but will be mentioned on your diploma)."]
[]
[null,"Extra curricular courses (extra above 120 ects)"]
[null,"Course code","Course name","EC"]
[]
[]
[]
[]
[]
[]
[]
[]
[]
[]
[null,null,"sum:",{"$f":"SUM(D76:D85)","v":0}]
[]
[null,"Total ECTS overall:",null,{"$f":"D86+D70","v":105},"EC"]
[]
[null,"Comments:"]
[]
[]
[]
[]
[]
[]
["#scheidingswoordmeteenhashtag"]
["2016, 2017, 2018"]
[null,"Request for approval Master's Programme Science - Research: Molecular Chemistry  (Cohorts 2016-2018)"]
[null,"This form can be used to submit your master's programme for approval by the examination board"]
[]
[]
[null,"Please complete the form and send via e-mail to: fnwi.examcies@science.ru.nl"]
[]
[null,"Student name:"]
[null,"Student number:"]
[null,"Starting date master:"]
[null,"E-mail:"]
[null,"Phone number:"]
[]
[]
[]
[null,"Compulsory courses specialisation + Career orientation (16 ec)",null,null,"Replaced by:"]
[null,"Course code","Course name","EC","Course code","Course name","EC"]
[null,"NWI-SM302","Advanced organic synthesis",3]
[null,"NWI-SM292A","Molecular Materials",3]
[null,"NWI-MOL402","Systems Chemistry",3]
[null,"NWI-MOL404","Instrumental Analysis in (Bio)molecular Chemistry",3]
[null,"NWI-SM019A","Polymer Chemistry",3]
[null,"NWI-MOL412","Career Orientation",1]
[null,null,"sum:",{"$f":"SUMIFS(D115:D120, G115:G120, \"\",E115:E120,\"\",F115:F120,\"\")+SUM(G115:G120)","v":16}]
[]
[]
[null,"Specialisation related internship (47-53 or 33-39 ec)"]
[null,"Title:"]
[null,"First supervisor:"]
[null,"Department:"]
[null,"Second supervisor:"]
[null,"Department:"]
[null,"Literature thesis (6 ec) NWI-MOL601",null,6]
[null,"Title essay/review:"]
[null,"Supervisor:"]
[null,"Department:"]
[null,"If applicable: courses relevant to the internship (0 to 6 ec)"]
[null,"Course code","Course name","EC","Course code","Course name","EC"]
[]
[]
[null,null,"sum:",{"$f":"SUM(D124,D130,D136:D137)","v":6},"This should add up to 59 or 45 EC"]
[]
[null,"Research internship in a second discipline (together with major internship this should add up to 89 ec)"]
[null,"Minor internship (24-30 or 38-44 ec)"]
[null,"Title:"]
[null,"First supervisor:"]
[null,"Department:"]
[null,"Second supervisor:"]
[null,"Department:"]
[null,"If applicable: Courses relevant to the internship (0 to 6 ec)"]
[null,"Course code","Course name","EC","Course code","Course name","EC"]
[]
[]
[null,null,"sum:",{"$f":"SUM(D141,D149:D150)","v":0},"This should add up to 30 or 44 EC"]
[]
[null,"Philosophy (3 ec) + Scientific Master's courses (6 ec) + Free electives (6 ec)",null,null,"Replaced by:"]
[null,"Course code","Course name","EC","Course code","Course name","EC"]
[null,{"$f":"VLOOKUP(C155,filo_lijst,2,FALSE)","v":""},"Choose your philosophy course here",{"$f":"VLOOKUP(C155,filo_lijst,3,FALSE)","v":""}]
[]
[]
[null,null,"Free electives below"]
[]
[]
[]
[]
[null,null,"sum:",{"$f":"SUMIFS(D155:D162, G155:G162, \"\")+SUM(G155:G162)","v":0}]
[]
[]
[]
[null,"Total ECTS (120)",null,{"$f":"SUM(D163,D151,D138,D121)","v":22}]
[]
[null,"Honours ('judicium') is awarded  based on the nominal number of 120 EC required for the examination (or more than 120 ec, i.e. courses mentioned above) ; extracurricilar courses do not count for this honours (but will be mentioned on your diploma)."]
[]
[null,"Extra curricular courses (extra above 120 ects)"]
[null,"Course code","Course name","EC"]
[]
[]
[]
[]
[]
[]
[]
[]
[]
[]
[null,null,"sum:",{"$f":"SUM(D173:D182)","v":0}]
[]
[null,"Total ECTS overall:",null,{"$f":"D183+D167","v":22},"EC"]
[]
[null,"Comments:"]
[]
[]
[]
[]
[]
[]
["#scheidingswoordmeteenhashtag"]

{"sheet":"Physical Chemistry","index":3,"n_rows":287,"n_cols":7,"rows_kept":287,"cut":false,"hidden":true,"merged":[[31,1,31,2],[31,4,31,5],[8,2,8,6],[9,2,9,6],[10,2,10,6],[11,2,11,6],[12,2,12,6],[25,1,25,2],[25,4,25,5],[26,2,26,6],[27,2,27,6],[28,2,28,6],[29,2,29,6],[30,2,30,6],[89,1,94,6],[32,2,32,6],[33,2,33,6],[34,2,34,6],[42,1,42,2],[42,4,42,5],[43,2,43,6],[44,2,44,6],[45,2,45,6],[46,2,46,6],[47,2,47,6],[70,1,71,6],[222,1,222,2],[222,4,222,5],[198,2,198,6],[199,2,199,6],[200,2,200,6],[201,2,201,6],[202,2,202,6],[216,1,216,2],[216,4,216,5],[217,2,217,6],[218,2,218,6],[219,2,219,6],[220,2,220,6],[221,2,221,6],[280,1,285,6],[223,2,223,6],[224,2,224,6],[225,2,225,6],[233,1,233,2],[233,4,233,5],[234,2,234,6],[235,2,235,6],[236,2,236,6],[237,2,237,6],[238,2,238,6],[261,1,262,6],[126,1,126,2],[126,4,126,5],[103,2,103,6],[104,2,104,6],[105,2,105,6],[106,2,106,6],[107,2,107,6],[120,1,120,2],[120,4,120,5],[121,2,121,6],[122,2,122,6],[123,2,123,6],[124,2,124,6],[125,2,125,6],[184,1,189,6],[127,2,127,6],[128,2,128,6],[129,2,129,6],[137,1,137,2],[137,4,137,5],[138,2,138,6],[139,2,139,6],[140,2,140,6],[141,2,141,6],[142,2,142,6],[165,1,166,6]]}
["Laat deze kolom leeg, behalve de jaartallen en de scheidingswoorden"]
["2014"]
[null,"Request for approval Master's Programme Science - Research: "]
[null,"Physical Chemistry of molecules and materials (Cohort 2014)"]
[null,"This form can be used to submit your master's programme for approval by the examination board"]
[]
[null,"Please complete the form and send via e-mail to: fnwi.examcies@science.ru.nl"]
[]
[null,"Student name:"]
[null,"Student number:"]
[null,"Starting date master:"]
[null,"E-mail:"]
[null,"Phone number:"]
[]
[]
[]
[null,"Compulsory courses specialisation (15 ec)",null,null,"Replaced by:"]
[null,"Course code","Course name","EC","Course code","Course name","EC"]
[null,"NWI-MOL409","Advanced Spectroscopy",6]
[null,"NWI-MOL408","Physical Chemistry of Molecular Aggregates",3]
[null,"NWI-MOL407","Materials Science",3]
[null,{"$f":"VLOOKUP(C22,physchem_lijst,2,0)","v":""},"Choose one of these courses",{"$f":"VLOOKUP(C22,physchem_lijst,3,0)","v":""}]
[null,null,"sum:",{"$f":"SUMIFS(D19:D22, G19:G22, \"\",E19:E22,\"\",F19:F22,\"\")+SUM(G19:G22)","v":12}]
[]
[]
[null,"Specialisation related internship(60 ec) (optionally 45 or 90 ec)",null,60]
[null,"Title:"]
[null,"First supervisor:"]
[null,"Department:"]
[null,"Second supervisor:"]
[null,"Department:"]
[null,"Literature thesis (6 ec) NWI-MOL601",null,6]
[null,"Title essay/review:"]
[null,"Name supervisor:"]
[null,"Department:"]
[null,"If applicable: courses relevant to the internship (0 to 6 ec)"]
[null,"Course code","Course name","EC","Course code","Course name","EC"]
[]
[]
[null,null,"sum:",{"$f":"SUM(D26)","v":60}]
[]
[null,"Research internship in a second discipline (together with major internship this should add up to 90 ec)"]
[null,{"$f":"\"Specialisation related internship (\" &90 - D40&\" ec)\"","v":"Specialisation related internship (30 ec)"},null,30]
[null,"Title:"]
[null,"First supervisor:"]
[null,"Department:"]
[null,"Second supervisor:"]
[null,"Department:"]
[null,"If applicable: Courses relevant to the internship (0 to 6 ec)"]
[null,"Course code","Course name","EC","Course code","Course name","EC"]
[]
[]
[null,null,"sum:",{"$f":"SUM(D43)","v":30}]
[]
[null,"Philosophy (3 ec) + Scientific Master's courses (6 ec) + Free electives (6 ec)",null,null,"Replaced by:"]
[null,"Course code","Course name","EC","Course code","Course name","EC"]
[null,{"$f":"VLOOKUP(C57,filo_lijst,2,FALSE)","v":""},"Choose your philosophy course here",{"$f":"VLOOKUP(C57,filo_lijst,3,FALSE)","v":""}]
[]
[]
[null,null,"Free electives below"]
[]
[]
[]
[]
[null,null,"sum:",{"$f":"SUMIFS(D57:D64, G57:G64, \"\")+SUM(G57:G64)","v":0}]
[]
[]
[]
[null,"Total ECTS (120)",null,{"$f":"SUM(D65,D53,D40,D23)","v":102}]
[]
[null,"Honours ('judicium') is awarded  based on the nominal number of 120 EC required for the examination (or more than 120 ec, i.e. courses mentioned above) ; extracurricilar courses do not count for this honours (but will be mentioned on your diploma)."]
[]
[null,"Extra curricular courses (extra above 120 ects)"]
[null,"Course code","Course name","EC"]
[]
[]
[]
[]
[]
[]
[]
[]
[]
[]
[null,null,"sum:",{"$f":"SUM(D75:D84)","v":0}]
[]
[null,"Total ECTS overall:",null,{"$f":"D85+D69","v":102},"EC"]
[]
[null,"Comments:"]
[]
[]
[]
[]
[]
[]
["#scheidingswoordmeteenhashtag"]
["2015"]
[null,"Request for approval Master's Programme Science - Research: Physical Chemistry (Cohort 2015)"]
[null,"This form can be used to submit your master's programme for approval by the examination board"]
[]
[]
[null,"Please complete the form and send via e-mail to: fnwi.examcies@science.ru.nl"]
[]
[null,"Student name:"]
[null,"Student number:"]
[null,"Starting date master:"]
[null,"E-mail:"]
[null,"Phone number:"]
[]
[]
[]
[null,"Compulsory courses specialisation + Career orientation (16 ec)",null,null,"Replaced by:"]
[null,"Course code","Course name","EC","Course code","Course name","EC"]
[null,"NWI-BM042B","Advanced Spectroscopy",6]
[null,"NWI-BM043B","Physical Chemistry of Molecular Aggregates",3]
[null,"NWI-BM001C","Materials Science",3]
[null,{"$f":"VLOOKUP(C117,physchem_lijst,2,0)","v":""},"Choose one of these courses",{"$f":"VLOOKUP(C117,physchem_lijst,3,0)","v":""}]
[null,null,"sum:",{"$f":"SUMIFS(D114:D117, G114:G117, \"\",E114:E117,\"\",F114:F117,\"\")+SUM(G114:G117)","v":12}]
[]
[]
[null,"Specialisation related internship(60 ec) (optionally 45 or 90 ec)",null,60]
[null,"Title:"]
[null,"First supervisor:"]
[null,"Department:"]
[null,"Second supervisor:"]
[null,"Department:"]
[null,"Literature thesis (6 ec) NWI-MOL601",null,6]
[null,"Title essay/review:"]
[null,"Name supervisor:"]
[null,"Department:"]
[null,"If applicable: courses relevant to the internship (0 to 6 ec)"]
[null,"Course code","Course name","EC","Course code","Course name","EC"]
[]
[]
[null,null,"sum:",{"$f":"SUM(D121)","v":60}]
[]
[null,"Research internship in a second discipline (together with major internship this should add up to 90 ec)"]
[null,{"$f":"\"Specialisation related internship (\" &90 - D135&\" ec)\"","v":"Specialisation related internship (30 ec)"},null,30]
[null,"Title:"]
[null,"First supervisor:"]
[null,"Department:"]
[null,"Second supervisor:"]
[null,"Department:"]
[null,"If applicable: Courses relevant to the internship (0 to 6 ec)"]
[null,"Course code","Course name","EC","Course code","Course name","EC"]
[]
[]
[null,null,"sum:",{"$f":"SUM(D138)","v":30}]
[]
[null,"Philosophy (3 ec) + Scientific Master's courses (6 ec) + Free electives (6 ec)",null,null,"Replaced by:"]
[null,"Course code","Course name","EC","Course code","Course name","EC"]
[null,{"$f":"VLOOKUP(C152,filo_lijst,2,FALSE)","v":""},"Choose your philosophy course here",{"$f":"VLOOKUP(C152,filo_lijst,3,FALSE)","v":""}]
[]
[]
[null,null,"Free electives below"]
[]
[]
[]
[]
[null,null,"sum:",{"$f":"SUMIFS(D152:D159, G152:G159, \"\")+SUM(G152:G159)","v":0}]
[]
[]
[]
[null,"Total ECTS (120)",null,{"$f":"SUM(D160,D148,D135,D118)","v":102}]
[]
[null,"Honours ('judicium') is awarded  based on the nominal number of 120 EC required for the examination (or more than 120 ec, i.e. courses mentioned above) ; extracurricilar courses do not count for this honours (but will be mentioned on your diploma)."]
[]
[null,"Extra curricular courses (extra above 120 ects)"]
[null,"Course code","Course name","EC"]
[]
[]
[]
[]
[]
[]
[]
[]
[]
[]
[null,null,"sum:",{"$f":"SUM(D170:D179)","v":0}]
[]
[null,"Total ECTS overall:",null,{"$f":"D180+D164","v":102},"EC"]
[]
[null,"Comments:"]
[]
[]
[]
[]
[]
[]
["#scheidingswoordmeteenhashtag"]
["2016, 2017, 2018"]
[null,"Request for approval Master's Programme Science - Research: Physical Chemistry  (Cohorts 2016-2018)"]
[null,"This form can be used to submit your master's programme for approval by the examination board"]
[]
[]
[null,"Please complete the form and send via e-mail to: secr.fnwi.examcies@science.ru.nl"]
[]
[null,"Student name:"]
[null,"Student number:"]
[null,"Starting date master:"]
[null,"E-mail:"]
[null,"Phone number:"]
[]
[]
[]
[null,"Compulsory courses specialisation + Career orientation (16 ec)",null,null,"Replaced by:"]
[null,"Course code","Course name","EC","Course code","Course name","EC"]
[null,"NWI-MOL409","Advanced Spectroscopy",6]
[null,"NWI-MOL408","Physical Chemistry of Molecular Aggregates",3]
[null,"NWI-MOL407","Materials Science",3]
[null,{"$f":"VLOOKUP(C212,physchem_lijst,2,0)","v":""},"Choose one of these courses",{"$f":"VLOOKUP(C212,physchem_lijst,3,0)","v":""}]
[null,"NWI-MOL412","Career Orientation",1]
[null,null,"sum:",{"$f":"SUMIFS(D209:D213, G209:G213, \"\",E209:E213,\"\",F209:F213,\"\")+SUM(G209:G213)","v":13}]
[]
[]
[null,"Specialisation related internship (47-53 or 33-39 ec)"]
[null,"Title:"]
[null,"First supervisor:"]
[null,"Department:"]
[null,"Second supervisor:"]
[null,"Department:"]
[null,"Literature thesis (6 ec) NWI-MOL601",null,6]
[null,"Title essay/review:"]
[null,"Supervisor:"]
[null,"Department:"]
[null,"If applicable: courses relevant to the internship (0 to 6 ec)"]
[null,"Course code","Course name","EC","Course code","Course name","EC"]
[]
[]
[null,null,"sum:",{"$f":"SUM(D217,D223,D229:D230)","v":6},"This should add up to 59 or 45 EC"]
[]
[null,"Research internship in a second discipline (together with major internship this should add up to 89 ec)"]
[null,"Minor internship (24-30 or 38-44 ec)"]
[null,"Title:"]
[null,"First supervisor:"]
[null,"Department:"]
[null,"Second supervisor:"]
[null,"Department:"]
[null,"If applicable: Courses relevant to the internship (0 to 6 ec)"]
[null,"Course code","Course name","EC","Course code","Course name","EC"]
[]
[]
[null,null,"sum:",{"$f":"SUM(D234,D242:D243)","v":0},"This should add up to 30 or 44 EC"]
[]
[null,"Philosophy (3 ec) + Scientific Master's courses (6 ec) + Free electives (6 ec)",null,null,"Replaced by:"]
[null,"Course code","Course name","EC","Course code","Course name","EC"]
[null,{"$f":"VLOOKUP(C248,filo_lijst,2,FALSE)","v":""},"Choose your philosophy course here",{"$f":"VLOOKUP(C248,filo_lijst,3,FALSE)","v":""}]
[]
[]
[null,null,"Free electives below"]
[]
[]
[]
[]
[null,null,"sum:",{"$f":"SUMIFS(D248:D255, G248:G255, \"\")+SUM(G248:G255)","v":0}]
[]
[]
[]
[null,"Total ECTS (120)",null,{"$f":"SUM(D256,D244,D231,D214)","v":19}]
[]
[null,"Honours ('judicium') is awarded  based on the nominal number of 120 EC required for the examination (or more than 120 ec, i.e. courses mentioned above) ; extracurricilar courses do not count for this honours (but will be mentioned on your diploma)."]
[]
[null,"Extra curricular courses (extra above 120 ects)"]
[null,"Course code","Course name","EC"]
[]
[]
[]
[]
[]
[]
[]
[]
[]
[]
[null,null,"sum:",{"$f":"SUM(D266:D275)","v":0}]
[]
[null,"Total ECTS overall:",null,{"$f":"D276+D260","v":19},"EC"]
[]
[null,"Comments:"]
[]
[]
[]
[]
[]
[]
["#scheidingswoordmeteenhashtag"]

{"sheet":"Neuroscience","index":4,"n_rows":276,"n_cols":7,"rows_kept":276,"cut":false,"hidden":true,"merged":[[269,1,274,6],[224,2,224,6],[225,2,225,6],[226,2,226,6],[227,2,227,6],[250,1,251,6],[213,2,213,6],[214,2,214,6],[222,1,222,2],[222,4,222,5],[223,2,223,6],[209,1,209,2],[209,4,209,5],[210,2,210,6],[211,2,211,6],[212,2,212,6],[191,2,191,6],[192,2,192,6],[193,2,193,6],[194,2,194,6],[195,2,195,6],[29,2,29,6],[30,2,30,6],[25,1,25,2],[25,4,25,5],[26,2,26,6],[27,2,27,6],[28,2,28,6],[8,2,8,6],[9,2,9,6],[10,2,10,6],[11,2,11,6],[12,2,12,6],[121,2,121,6],[122,2,122,6],[85,1,90,6],[38,1,38,2],[38,4,38,5],[39,2,39,6],[40,2,40,6],[41,2,41,6],[42,2,42,6],[43,2,43,6],[66,1,67,6],[117,1,117,2],[117,4,117,5],[118,2,118,6],[119,2,119,6],[120,2,120,6],[99,2,99,6],[100,2,100,6],[101,2,101,6],[102,2,102,6],[103,2,103,6],[177,1,182,6],[130,1,130,2],[130,4,130,5],[131,2,131,6],[132,2,132,6],[133,2,133,6],[134,2,134,6],[135,2,135,6],[158,1,159,6]]}
["Laat deze kolom leeg, behalve de jaartallen en de scheidingswoorden"]
["2014, 2015"]
[null,"Request for approval Master's Programme Science - Research: Neuroscience (Cohorts 2014, 2015)"]
[null,"This form can be used to submit your master's programme for approval by the examination board"]
[]
[]
[null,"Please complete the form and send via e-mail to: fnwi.examcies@science.ru.nl"]
[]
[null,"Student name:"]
[null,"Student number:"]
[null,"Starting date master:"]
[null,"E-mail:"]
[null,"Phone number:"]
[]
[]
[]
[null,"Compulsory courses specialisation (15 ec)",null,null,"Replaced by:"]
[null,"Course code","Course name","EC","Course code","Course name","EC"]
[null,"NWI-BM044B","Systems Neuroscience",3]
[null,"NWI-BM053B","Behavioural Neuroscience",3]
[null,"NWI-NM103","Methods in Neuroscience",3]
[null,"NWI-BM059","Systematic Reviews in Neuroscience",6]
[null,null,"sum:",{"$f":"SUMIFS(D19:D22, G19:G22, \"\",E19:E22,\"\",F19:F22,\"\")+SUM(G19:G22)","v":15}]
[]
[]
[null,"Specialisation related internship(60 ec) (optionally 45 or 90 ec)",null,60]
[null,"Title:"]
[null,"Name first supervisor:"]
[null,"Department:"]
[null,"Name 2nd supervisor:"]
[null,"Department:"]
[null,"If applicable: courses relevant to the internship (0 to 6 ec)"]
[null,"Course code","Course name","EC","Course code","Course name","EC"]
[]
[]
[null,null,"sum:",{"$f":"SUM(D26)","v":60}]
[]
[null,"Research internship in a second discipline (together with major internship this should add up to 90 ec)"]
[null,{"$f":"\"Specialisation related internship (\" &90 - D36&\" ec)\"","v":"Specialisation related internship (30 ec)"},null,30]
[null,"Title:"]
[null,"First supervisor:"]
[null,"Department:"]
[null,"Second supervisor:"]
[null,"Department:"]
[null,"If applicable: Courses relevant to the internship (0 to 6 ec)"]
[null,"Course code","Course name","EC","Course code","Course name","EC"]
[]
[]
[null,null,"sum:",{"$f":"SUM(D39)","v":30}]
[]
[null,"Philosophy (3 ec) + Scientific Master's courses (6 ec) + Free electives (6 ec)",null,null,"Replaced by:"]
[null,"Course code","Course name","EC","Course code","Course name","EC"]
[null,{"$f":"VLOOKUP(C53,filo_lijst,2,FALSE)","v":""},"Choose your philosophy course here",{"$f":"VLOOKUP(C53,filo_lijst,3,FALSE)","v":""}]
[]
[]
[null,null,"Free electives below"]
[]
[]
[]
[]
[null,null,"sum:",{"$f":"SUMIFS(D53:D60, G53:G60, \"\")+SUM(G53:G60)","v":0}]
[]
[]
[]
[null,"Total ECTS (120)",null,{"$f":"SUM(D61,D49,D36,D23)","v":105}]
[]
[null,"Honours ('judicium') is awarded  based on the nominal number of 120 EC required for the examination (or more than 120 ec, i.e. courses mentioned above) ; extracurricilar courses do not count for this honours (but will be mentioned on your diploma)."]
[]
[null,"Extra curricular courses (extra above 120 ects)"]
[null,"Course code","Course name","EC"]
[]
[]
[]
[]
[]
[]
[]
[]
[]
[]
[null,null,"sum:",{"$f":"SUM(D71:D80)","v":0}]
[]
[null,"Total ECTS overall:",null,{"$f":"D81+D65","v":105},"EC"]
[]
[null,"Comments:"]
[]
[]
[]
[]
[]
[]
["#scheidingswoordmeteenhashtag"]
[2016]
[null,"Request for approval Master's  Programme Science - Research: Neuroscience (Cohort 2016)"]
[null,"This form can be used to submit your master's programme for approval by the examination board"]
[]
[]
[null,"Please complete the form and send via e-mail to: fnwi.examcies@science.ru.nl"]
[]
[null,"Student name:"]
[null,"Student number:"]
[null,"Starting date master:"]
[null,"E-mail:"]
[null,"Phone number:"]
[]
[]
[]
[null,"Compulsory courses specialisation + Career orientation (16 ec)",null,null,"Replaced by:"]
[null,"Course code","Course name","EC","Course code","Course name","EC"]
[null,"NWI-BM044B","Systems Neuroscience",3]
[null,"NWI-BM053B","Behavioural Neuroscience",3]
[null,"NWI-NM103","Methods in Neuroscience",3]
[null,"NWI-BM059","Systematic Reviews in Neuroscience",6]
[null,"NWI-MOL412","Career Orientation",1]
[null,null,"sum:",{"$f":"SUMIFS(D110:D114, G110:G114, \"\",E110:E114,\"\",F110:F114,\"\")+SUM(G110:G114)","v":16}]
[]
[]
[null,"Specialisation related internship(59 ec) (optionally 44 or 89 ec)",null,59]
[null,"Title:"]
[null,"First supervisor:"]
[null,"Department:"]
[null,"Second supervisor:"]
[null,"Department:"]
[null,"If applicable: courses relevant to the internship (0 to 6 ec)"]
[null,"Course code","Course name","EC","Course code","Course name","EC"]
[]
[]
[null,null,"sum:",{"$f":"SUM(D118)","v":59}]
[]
[null,"Research internship in a second discipline (together with major internship this should add up to 89 ec)"]
[null,{"$f":"\"Minor internship (\" &89-D128&\" ec)\"","v":"Minor internship (30 ec)"},null,30]
[null,"Title:"]
[null,"First supervisor:"]
[null,"Department:"]
[null,"Second supervisor:"]
[null,"Department:"]
[null,"If applicable: Courses relevant to the internship (0 to 6 ec)"]
[null,"Course code","Course name","EC","Course code","Course name","EC"]
[]
[]
[null,null,"sum:",{"$f":"SUM(D131)","v":30}]
[]
[null,"Philosophy (3 ec) + Scientific Master's courses (6 ec) + Free electives (6 ec)",null,null,"Replaced by:"]
[null,"Course code","Course name","EC","Course code","Course name","EC"]
[null,{"$f":"VLOOKUP(C145,filo_lijst,2,FALSE)","v":""},"Choose your philosophy course here",{"$f":"VLOOKUP(C145,filo_lijst,3,FALSE)","v":""}]
[]
[]
[null,null,"Free electives below"]
[]
[]
[]
[]
[null,null,"sum:",{"$f":"SUMIFS(D145:D152, G145:G152, \"\")+SUM(G145:G152)","v":0}]
[]
[]
[]
[null,"Total ECTS (120)",null,{"$f":"SUM(D153,D141,D128,D115)","v":105}]
[]
[null,"Honours ('judicium') is awarded  based on the nominal number of 120 EC required for the examination (or more than 120 ec, i.e. courses mentioned above) ; extracurricilar courses do not count for this honours (but will be mentioned on your diploma)."]
[]
[null,"Extra curricular courses (extra above 120 ects)"]
[null,"Course code","Course name","EC"]
[]
[]
[]
[]
[]
[]
[]
[]
[]
[]
[null,null,"sum:",{"$f":"SUM(D163:D172)","v":0}]
[]
[null,"Total ECTS overall:",null,{"$f":"D173+D157","v":105},"EC"]
[]
[null,"Comments:"]
[]
[]
[]
[]
[]
[]
["#scheidingswoordmeteenhashtag"]
["2017, 2018"]
[null,"Request for approval Master's  Programme Science - Research: Neuroscience (Cohorts 2017-2018)"]
[null,"This form can be used to submit your master's programme for approval by the examination board"]
[]
[]
[null,"Please complete the form and send via e-mail to: fnwi.examcies@science.ru.nl"]
[]
[null,"Student name:"]
[null,"Student number:"]
[null,"Starting date master:"]
[null,"E-mail:"]
[null,"Phone number:"]
[]
[]
[]
[null,"Compulsory courses specialisation + Career orientation (16 ec)",null,null,"Replaced by:"]
[null,"Course code","Course name","EC","Course code","Course name","EC"]
[null,"NWI-BM044B","Systems Neuroscience",3]
[null,"NWI-BM053B","Behavioural Neuroscience",3]
[null,"NWI-NM103B","Methods in Neuroscience",3]
[null,"NWI-BM059","Systematic Reviews in Neuroscience",6]
[null,"NWI-MOL412","Career Orientation",1]
[null,null,"sum:",{"$f":"SUMIFS(D202:D206, G202:G206, \"\",E202:E206,\"\",F202:F206,\"\")+SUM(G202:G206)","v":16}]
[]
[]
[null,"Specialisation related internship(53-59 or 39-45 ec)"]
[null,"Title:"]
[null,"First supervisor:"]
[null,"Department:"]
[null,"Second supervisor:"]
[null,"Department:"]
[null,"If applicable: courses relevant to the internship (0 to 6 ec)"]
[null,"Course code","Course name","EC","Course code","Course name","EC"]
[]
[]
[null,null,"sum:",{"$f":"SUM(D210,D218:D219)","v":0},"This should add up to 59 or 45 ec"]
[]
[null,"Research internship in a second discipline (together with major internship this should add up to 89 ec)"]
[null,"Minor internship (24-30 or 38-44 ec)"]
[null,"Title:"]
[null,"First supervisor:"]
[null,"Department:"]
[null,"Second supervisor:"]
[null,"Department:"]
[null,"If applicable: Courses relevant to the internship (0 to 6 ec)"]
[null,"Course code","Course name","EC","Course code","Course name","EC"]
[]
[]
[null,null,"sum:",{"$f":"SUM(D223)","v":0},"This should add up to 30 or 44 ec"]
[]
[null,"Philosophy (3 ec) + Scientific Master's courses (6 ec) + Free electives (6 ec)",null,null,"Replaced by:"]
[null,"Course code","Course name","EC","Course code","Course name","EC"]
[null,{"$f":"VLOOKUP(C237,filo_lijst,2,FALSE)","v":""},"Choose your philosophy course here",{"$f":"VLOOKUP(C237,filo_lijst,3,FALSE)","v":""}]
[]
[]
[null,null,"Free electives below"]
[]
[]
[]
[]
[null,null,"sum:",{"$f":"SUMIFS(D237:D244, G237:G244, \"\")+SUM(G237:G244)","v":0}]
[]
[]
[]
[null,"Total ECTS (120)",null,{"$f":"SUM(D245,D233,D220,D207)","v":16}]
[]
[null,"Honours ('judicium') is awarded  based on the nominal number of 120 EC required for the examination (or more than 120 ec, i.e. courses mentioned above) ; extracurricilar courses do not count for this honours (but will be mentioned on your diploma)."]
[]
[null,"Extra curricular courses (extra above 120 ects)"]
[null,"Course code","Course name","EC"]
[]
[]
[]
[]
[]
[]
[]
[]
[]
[]
[null,null,"sum:",{"$f":"SUM(D255:D264)","v":0}]
[]
[null,"Total ECTS overall:",null,{"$f":"D265+D249","v":16},"EC"]
[]
[null,"Comments:"]
[]
[]
[]
[]
[]
[]
["#scheidingswoordmeteenhashtag"]

{"sheet":"Medical Epigenomics","index":5,"n_rows":290,"n_cols":7,"rows_kept":290,"cut":false,"hidden":true,"merged":[[283,1,288,6],[238,2,238,6],[239,2,239,6],[240,2,240,6],[241,2,241,6],[264,1,265,6],[227,2,227,6],[228,2,228,6],[236,1,236,2],[236,4,236,5],[237,2,237,6],[223,2,223,6],[224,2,224,6],[225,1,225,2],[225,4,225,5],[226,2,226,6],[219,1,219,2],[219,4,219,5],[220,2,220,6],[221,2,221,6],[222,2,222,6],[201,2,201,6],[202,2,202,6],[203,2,203,6],[204,2,204,6],[205,2,205,6],[32,1,32,2],[32,4,32,5],[8,2,8,6],[9,2,9,6],[10,2,10,6],[11,2,11,6],[12,2,12,6],[26,1,26,2],[26,4,26,5],[27,2,27,6],[28,2,28,6],[29,2,29,6],[30,2,30,6],[31,2,31,6],[90,1,95,6],[33,2,33,6],[34,2,34,6],[35,2,35,6],[43,1,43,2],[43,4,43,5],[44,2,44,6],[45,2,45,6],[46,2,46,6],[47,2,47,6],[48,2,48,6],[71,1,72,6],[129,1,129,2],[129,4,129,5],[104,2,104,6],[105,2,105,6],[106,2,106,6],[107,2,107,6],[108,2,108,6],[123,1,123,2],[123,4,123,5],[124,2,124,6],[125,2,125,6],[126,2,126,6],[127,2,127,6],[128,2,128,6],[187,1,192,6],[130,2,130,6],[131,2,131,6],[132,2,132,6],[140,1,140,2],[140,4,140,5],[141,2,141,6],[142,2,142,6],[143,2,143,6],[144,2,144,6],[145,2,145,6],[168,1,169,6]]}
["Laat deze kolom leeg, behalve de jaartallen en de scheidingswoorden"]
["2015"]
[null,"Request for approval Master's  Programme Science - Research: Medical Epigenomics (Cohorts 2014, 2015)"]
[null,"This form can be used to submit your master's programme for approval by the examination board"]
[]
[]
[null,"Please complete the form and send via e-mail to: fnwi.examcies@science.ru.nl"]
[]
[null,"Student name:"]
[null,"Student number:"]
[null,"Starting date master:"]
[null,"E-mail:"]
[null,"Phone number:"]
[]
[]
[]
[null,"Compulsory courses specialisation (15 ec)",null,null,"Replaced by:"]
[null,"Course code","Course name","EC","Course code","Course name","EC"]
[null,"NWI-BM042B","Trends in Medical Biosciences I",3]
[null,"NWI-BM062","Epigenomics in Health and Disease",3]
[null,"NWI-BM064","Protein Dynamics and Networks",3]
[null,"NWI-BM066","Computation for Biologists",3]
[null,"NWI-BM047B","Trends in Medical Biosciences II",3]
[null,null,"sum:",{"$f":"SUMIFS(D19:D23, G19:G23, \"\",E19:E23,\"\",F19:F23,\"\")+SUM(G19:G23)","v":15}]
[]
[]
[null,"Specialisation related internship(60 ec) (optionally 45 or 90 ec)",null,60]
[null,"Title:"]
[null,"Name first supervisor:"]
[null,"Department:"]
[null,"Name 2nd supervisor:"]
[null,"Department:"]
[null,"Literature thesis (6 ec) NWI-MOL601",null,6]
[null,"Title essay/review:"]
[null,"Name supervisor:"]
[null,"Department:"]
[null,"If applicable: courses relevant to the internship (0 to 6 ec)"]
[null,"Course code","Course name","EC","Course code","Course name","EC"]
[]
[]
[null,null,"sum:",{"$f":"SUM(D27)","v":60}]
[]
[null,"Research internship in a second discipline (together with major internship this should add up to 90 ec)"]
[null,{"$f":"\"Specialisation related internship (\" &90 - D41&\" ec)\"","v":"Specialisation related internship (30 ec)"},null,30]
[null,"Title:"]
[null,"First supervisor:"]
[null,"Department:"]
[null,"Second supervisor:"]
[null,"Department:"]
[null,"If applicable: Courses relevant to the internship (0 to 6 ec)"]
[null,"Course code","Course name","EC","Course code","Course name","EC"]
[]
[]
[null,null,"sum:",{"$f":"SUM(D44)","v":30}]
[]
[null,"Philosophy (3 ec) + Scientific Master's courses (6 ec) + Free electives (6 ec)",null,null,"Replaced by:"]
[null,"Course code","Course name","EC","Course code","Course name","EC"]
[null,{"$f":"VLOOKUP(C58,filo_lijst,2,FALSE)","v":""},"Choose your philosophy course here",{"$f":"VLOOKUP(C58,filo_lijst,3,FALSE)","v":""}]
[]
[]
[null,null,"Free electives below"]
[]
[]
[]
[]
[null,null,"sum:",{"$f":"SUMIFS(D58:D65, G58:G65, \"\")+SUM(G58:G65)","v":0}]
[]
[]
[]
[null,"Total ECTS (120)",null,{"$f":"SUM(D66,D54,D41,D24)","v":105}]
[]
[null,"Honours ('judicium') is awarded  based on the nominal number of 120 EC required for the examination (or more than 120 ec, i.e. courses mentioned above) ; extracurricilar courses do not count for this honours (but will be mentioned on your diploma)."]
[]
[null,"Extra curricular courses (extra above 120 ects)"]
[null,"Course code","Course name","EC"]
[]
[]
[]
[]
[]
[]
[]
[]
[]
[]
[null,null,"sum:",{"$f":"SUM(D76:D85)","v":0}]
[]
[null,"Total ECTS overall:",null,{"$f":"D86+D70","v":105},"EC"]
[]
[null,"Comments:"]
[]
[]
[]
[]
[]
[]
["#scheidingswoordmeteenhashtag"]
[2016]
[null,"Request for approval Master's  Programme Science - Research: Medical Epigenomics  (Cohorts 2016)"]
[null,"This form can be used to submit your master's programme for approval by the examination board"]
[]
[]
[null,"Please complete the form and send via e-mail to: fnwi.examcies@science.ru.nl"]
[]
[null,"Student name:"]
[null,"Student number:"]
[null,"Starting date master:"]
[null,"E-mail:"]
[null,"Phone number:"]
[]
[]
[]
[null,"Compulsory courses specialisation + Career orientation (16 ec)",null,null,"Replaced by:"]
[null,"Course code","Course name","EC","Course code","Course name","EC"]
[null,"NWI-BM042B","Trends in Medical Biosciences I",3]
[null,"NWI-BM062","Epigenomics in Health and Disease",3]
[null,"NWI-BM064","Protein Dynamics and Networks",3]
[null,"NWI-BM066","Computation for Biologists",3]
[null,"NWI-BM047B","Trends in Medical Biosciences II",3]
[null,"NWI-MOL412","Career Orientation",1]
[null,null,"sum:",{"$f":"SUMIFS(D115:D120, G115:G120, \"\",E115:E120,\"\",F115:F120,\"\")+SUM(G115:G120)","v":16}]
[]
[]
[null,"Specialisation related internship(59 ec) (optionally 44 or 89 ec)",null,59]
[null,"Title:"]
[null,"First supervisor:"]
[null,"Department:"]
[null,"Second supervisor:"]
[null,"Department:"]
[null,"Literature thesis (6 ec) NWI-MOL601",null,6]
[null,"Title essay/review:"]
[null,"Supervisor:"]
[null,"Department:"]
[null,"If applicable: courses relevant to the internship (0 to 6 ec)"]
[null,"Course code","Course name","EC","Course code","Course name","EC"]
[]
[]
[null,null,"sum:",{"$f":"SUM(D124)","v":59}]
[]
[null,"Research internship in a second discipline (together with major internship this should add up to 89 ec)"]
[null,{"$f":"\"Minor internship (\" &89-D138&\" ec)\"","v":"Minor internship (30 ec)"},null,30]
[null,"Title:"]
[null,"First supervisor:"]
[null,"Department:"]
[null,"Second supervisor:"]
[null,"Department:"]
[null,"If applicable: Courses relevant to the internship (0 to 6 ec)"]
[null,"Course code","Course name","EC","Course code","Course name","EC"]
[]
[]
[null,null,"sum:",{"$f":"SUM(D141)","v":30}]
[]
[null,"Philosophy (3 ec) + Scientific Master's courses (6 ec) + Free electives (6 ec)",null,null,"Replaced by:"]
[null,"Course code","Course name","EC","Course code","Course name","EC"]
[null,{"$f":"VLOOKUP(C155,filo_lijst,2,FALSE)","v":""},"Choose your philosophy course here",{"$f":"VLOOKUP(C155,filo_lijst,3,FALSE)","v":""}]
[]
[]
[null,null,"Free electives below"]
[]
[]
[]
[]
[null,null,"sum:",{"$f":"SUMIFS(D155:D162, G155:G162, \"\")+SUM(G155:G162)","v":0}]
[]
[]
[]
[null,"Total ECTS (120)",null,{"$f":"SUM(D163,D151,D138,D121)","v":105}]
[]
[null,"Honours ('judicium') is awarded  based on the nominal number of 120 EC required for the examination (or more than 120 ec, i.e. courses mentioned above) ; extracurricilar courses do not count for this honours (but will be mentioned on your diploma)."]
[]
[null,"Extra curricular courses (extra above 120 ects)"]
[null,"Course code","Course name","EC"]
[]
[]
[]
[]
[]
[]
[]
[]
[]
[]
[null,null,"sum:",{"$f":"SUM(D173:D182)","v":0}]
[]
[null,"Total ECTS overall:",null,{"$f":"D183+D167","v":105},"EC"]
[]
[null,"Comments:"]
[]
[]
[]
[]
[]
[]
["#scheidingswoordmeteenhashtag"]
["2017, 2018"]
[null,"Request for approval Master's  Programme Science - Research: Medical Epigenomics  (Cohorts 2017-2018)"]
[null,"This form can be used to submit your master's programme for approval by the examination board"]
[]
[]
[null,"Please complete the form and send via e-mail to: fnwi.examcies@science.ru.nl"]
[]
[null,"Student name:"]
[null,"Student number:"]
[null,"Starting date master:"]
[null,"E-mail:"]
[null,"Phone number:"]
[]
[]
[]
[null,"Compulsory courses specialisation + Career orientation (16 ec)",null,null,"Replaced by:"]
[null,"Course code","Course name","EC","Course code","Course name","EC"]
[null,"NWI-BM073","Trends in Stem cell Biology",3]
[null,"NWI-BM062","Epigenomics in Health and Disease",3]
[null,"NWI-BM064","Protein Dynamics and Networks",3]
[null,"NWI-BM066A","Computation for Biologists",6]
[null,"NWI-MOL412","Career Orientation",1]
[null,null,"sum:",{"$f":"SUMIFS(D212:D216, G212:G216, \"\",E212:E216,\"\",F212:F216,\"\")+SUM(G212:G216)","v":16}]
[]
[]
[null,"Specialisation related internship (47-53 or 33-39 ec)"]
[null,"Title:"]
[null,"First supervisor:"]
[null,"Department:"]
[null,"Second supervisor:"]
[null,"Department:"]
[null,"Literature thesis (6 ec) NWI-MOL601",null,6]
[null,"Title essay/review:"]
[null,"Supervisor:"]
[null,"Department:"]
[null,"If applicable: courses relevant to the internship (0 to 6 ec)"]
[null,"Course code","Course name","EC","Course code","Course name","EC"]
[]
[]
[null,null,"sum:",{"$f":"SUM(D220,D226,D232:D233)","v":6},"This should add up to 59 or 45 EC"]
[]
[null,"Research internship in a second discipline (together with major internship this should add up to 89 ec)"]
[null,"Minor internship (24-30 or 38-44 ec)"]
[null,"Title:"]
[null,"First supervisor:"]
[null,"Department:"]
[null,"Second supervisor:"]
[null,"Department:"]
[null,"If applicable: Courses relevant to the internship (0 to 6 ec)"]
[null,"Course code","Course name","EC","Course code","Course name","EC"]
[]
[]
[null,null,"sum:",{"$f":"SUM(D237,D245:D246)","v":0},"This should add up to 30 or 44 EC"]
[]
[null,"Philosophy (3 ec) + Scientific Master's courses (6 ec) + Free electives (6 ec)",null,null,"Replaced by:"]
[null,"Course code","Course name","EC","Course code","Course name","EC"]
[null,{"$f":"VLOOKUP(C251,filo_lijst,2,FALSE)","v":""},"Choose your philosophy course here",{"$f":"VLOOKUP(C251,filo_lijst,3,FALSE)","v":""}]
[]
[]
[null,null,"Free electives below"]
[]
[]
[]
[]
[null,null,"sum:",{"$f":"SUMIFS(D251:D258, G251:G258, \"\")+SUM(G251:G258)","v":0}]
[]
[]
[]
[null,"Total ECTS (120)",null,{"$f":"SUM(D259,D247,D234,D217)","v":22}]
[]
[null,"Honours ('judicium') is awarded  based on the nominal number of 120 EC required for the examination (or more than 120 ec, i.e. courses mentioned above) ; extracurricilar courses do not count for this honours (but will be mentioned on your diploma)."]
[]
[null,"Extra curricular courses (extra above 120 ects)"]
[null,"Course code","Course name","EC"]
[]
[]
[]
[]
[]
[]
[]
[]
[]
[]
[null,null,"sum:",{"$f":"SUM(D269:D278)","v":0}]
[]
[null,"Total ECTS overall:",null,{"$f":"D279+D263","v":22},"EC"]
[]
[null,"Comments:"]
[]
[]
[]
[]
[]
[]
["#scheidingswoordmeteenhashtag"]

{"sheet":"Functional Genomics","index":6,"n_rows":100,"n_cols":7,"rows_kept":100,"cut":false,"hidden":true,"merged":[[32,1,32,2],[32,4,32,5],[8,2,8,6],[9,2,9,6],[10,2,10,6],[11,2,11,6],[12,2,12,6],[26,1,26,2],[26,4,26,5],[27,2,27,6],[28,2,28,6],[29,2,29,6],[30,2,30,6],[31,2,31,6],[90,1,95,6],[33,2,33,6],[34,2,34,6],[35,2,35,6],[44,2,44,6],[45,2,45,6],[46,2,46,6],[47,2,47,6],[71,1,72,6],[43,1,43,2],[43,4,43,5],[48,2,48,6]]}
["Laat deze kolom leeg, behalve de jaartallen en de scheidingswoorden"]
["2014"]
[null,"Request for approval Master's  Programme Science - Research: Functional Genomics (Cohort 2014)"]
[null,"This form can be used to submit your master's programme for approval by the examination board"]
[]
[]
[null,"Please complete the form and send via e-mail to: fnwi.examcies@science.ru.nl"]
[]
[null,"Student name:"]
[null,"Student number:"]
[null,"Starting date master:"]
[null,"E-mail:"]
[null,"Phone number:"]
[]
[]
[]
[null,"Compulsory courses specialisation (15 ec)",null,null,"Replaced by:"]
[null,"Course code","Course name","EC","Course code","Course name","EC"]
[null,"NWI-BM042B","Trends in Medical Biosciences I",3]
[null,"NWI-BM043B","Molecular and translational oncology",3]
[null,"NWI-BM001C","Molecular mechanisms of novel therapeutics",3]
[null,"NWI-BM049B","Molecular and cellular neurobiology",3]
[null,"NWI-BM047B","Trends in Medical Biosciences II",3]
[null,null,"sum:",{"$f":"SUMIFS(D19:D23, G19:G23, \"\",E19:E23,\"\",F19:F23,\"\")+SUM(G19:G23)","v":15}]
[]
[]
[null,"Specialisation related internship(60 ec) (optionally 45 or 90 ec)",null,60]
[null,"Title:"]
[null,"Name first supervisor:"]
[null,"Department:"]
[null,"Name 2nd supervisor:"]
[null,"Department:"]
[null,"Literature thesis (6 ec) NWI-MOL601",null,6]
[null,"Title essay/review:"]
[null,"Name supervisor:"]
[null,"Department:"]
[null,"If applicable: courses relevant to the internship (0 to 6 ec)"]
[null,"Course code","Course name","EC","Course code","Course name","EC"]
[]
[]
[null,null,"sum:",{"$f":"SUM(D27)","v":60}]
[]
[null,"Research internship in a second discipline (together with major internship this should add up to 90 ec)"]
[null,{"$f":"\"Specialisation related internship (\" &90 - D41&\" ec)\"","v":"Specialisation related internship (30 ec)"},null,30]
[null,"Title:"]
[null,"First supervisor:"]
[null,"Department:"]
[null,"Second supervisor:"]
[null,"Department:"]
[null,"If applicable: Courses relevant to the internship (0 to 6 ec)"]
[null,"Course code","Course name","EC","Course code","Course name","EC"]
[]
[]
[null,null,"sum:",{"$f":"SUM(D44)","v":30}]
[]
[null,"Philosophy (3 ec) + Scientific Master's courses (6 ec) + Free electives (6 ec)",null,null,"Replaced by:"]
[null,"Course code","Course name","EC","Course code","Course name","EC"]
[null,{"$f":"VLOOKUP(C58,filo_lijst,2,FALSE)","v":""},"Choose your philosophy course here",{"$f":"VLOOKUP(C58,filo_lijst,3,FALSE)","v":""}]
[]
[]
[null,null,"Free electives below"]
[]
[]
[]
[]
[null,null,"sum:",{"$f":"SUMIFS(D58:D65, G58:G65, \"\")+SUM(G58:G65)","v":0}]
[]
[]
[]
[null,"Total ECTS (120)",null,{"$f":"SUM(D66,D54,D41,D24)","v":105}]
[]
[null,"Honours ('judicium') is awarded  based on the nominal number of 120 EC required for the examination (or more than 120 ec, i.e. courses mentioned above) ; extracurricilar courses do not count for this honours (but will be mentioned on your diploma)."]
[]
[null,"Extra curricular courses (extra above 120 ects)"]
[null,"Course code","Course name","EC"]
[]
[]
[]
[]
[]
[]
[]
[]
[]
[]
[null,null,"sum:",{"$f":"SUM(D76:D85)","v":0}]
[]
[null,"Total ECTS overall:",null,{"$f":"D86+D70","v":105},"EC"]
[]
[null,"Comments:"]
[]
[]
[]
[]
[]
[]
["#scheidingswoordmeteenhashtag"]
["2015,2016,2017,2018,2019,2020"]
[null,"This specialisation does not exist for cohorts after 2014. A similar specialisation called medical epigenomics was offered for later cohorts."]
["#scheidingswoordmeteenhashtag"]

{"sheet":"Physics of Mol. and Mat.","index":7,"n_rows":285,"n_cols":7,"rows_kept":285,"cut":false,"hidden":true,"merged":[[278,1,283,6],[233,2,233,6],[234,2,234,6],[235,2,235,6],[236,2,236,6],[259,1,260,6],[222,2,222,6],[223,2,223,6],[231,1,231,2],[231,4,231,5],[232,2,232,6],[218,2,218,6],[219,2,219,6],[220,1,220,2],[220,4,220,5],[221,2,221,6],[214,1,214,2],[214,4,214,5],[215,2,215,6],[216,2,216,6],[217,2,217,6],[197,2,197,6],[198,2,198,6],[199,2,199,6],[200,2,200,6],[201,2,201,6],[30,1,30,2],[30,4,30,5],[8,2,8,6],[9,2,9,6],[10,2,10,6],[11,2,11,6],[12,2,12,6],[24,1,24,2],[24,4,24,5],[25,2,25,6],[26,2,26,6],[27,2,27,6],[28,2,28,6],[29,2,29,6],[88,1,93,6],[31,2,31,6],[32,2,32,6],[33,2,33,6],[41,1,41,2],[41,4,41,5],[42,2,42,6],[43,2,43,6],[44,2,44,6],[45,2,45,6],[46,2,46,6],[69,1,70,6],[102,2,102,6],[103,2,103,6],[104,2,104,6],[105,2,105,6],[106,2,106,6],[138,2,138,6],[121,2,121,6],[122,2,122,6],[123,2,123,6],[124,2,124,6],[164,1,165,6],[183,1,188,6],[119,1,119,2],[119,4,119,5],[120,2,120,6],[125,1,125,2],[125,4,125,5],[126,2,126,6],[136,1,136,2],[136,4,136,5],[137,2,137,6],[139,2,139,6],[140,2,140,6],[141,2,141,6],[127,2,127,6],[128,2,128,6]]}
["Laat deze kolom leeg, behalve de jaartallen en de scheidingswoorden"]
["2014, 2015"]
[null,"Request for approval Master's  Programme Science - Research: Physics of molecules and materials (Cohorts 2014 and 2015)"]
[null,"This form can be used to submit your master's programme for approval by the examination board"]
[]
[null,"Please complete the form and send via e-mail to: fnwi.examcies@science.ru.nl"]
[]
[]
[null,"Student name:"]
[null,"Student number:"]
[null,"Starting date master:"]
[null,"E-mail:"]
[null,"Phone number:"]
[]
[]
[]
[null,"Compulsory courses specialisation (15 ec)",null,null,"Replaced by:"]
[null,"Course code","Course name","EC","Course code","Course name","EC"]
[null,"NWI-NM009B","Solid State Physics",6]
[null,"NWI-NM089B","Molecular Physics",6]
[null,"NWI-NM001B","Electrodynamics",3]
[null,null,"sum:",{"$f":"SUMIFS(D19:D21, G19:G21, \"\",E19:E21,\"\",F19:F21,\"\")+SUM(G19:G21)","v":15}]
[]
[]
[null,"Specialisation related internship(60 ec) (optionally 45 or 90 ec)",null,60]
[null,"Title:"]
[null,"Name first supervisor:"]
[null,"Department:"]
[null,"Name 2nd supervisor:"]
[null,"Department:"]
[null,"Literature thesis (6 ec) NWI-MOL601",null,6]
[null,"Title essay/review:"]
[null,"Name supervisor:"]
[null,"Department:"]
[null,"If applicable: courses relevant to the internship (0 to 6 ec)"]
[null,"Course code","Course name","EC","Course code","Course name","EC"]
[]
[]
[null,null,"sum:",{"$f":"SUM(D25)","v":60}]
[]
[null,"Research internship in a second discipline (together with major internship this should add up to 90 ec)"]
[null,{"$f":"\"Specialisation related internship (\" &90 - D39&\" ec)\"","v":"Specialisation related internship (30 ec)"},null,30]
[null,"Title:"]
[null,"First supervisor:"]
[null,"Department:"]
[null,"Second supervisor:"]
[null,"Department:"]
[null,"If applicable: Courses relevant to the internship (0 to 6 ec)"]
[null,"Course code","Course name","EC","Course code","Course name","EC"]
[]
[]
[null,null,"sum:",{"$f":"SUM(D42)","v":30}]
[]
[null,"Philosophy (3 ec) + Scientific Master's courses (6 ec) + Free electives (6 ec)",null,null,"Replaced by:"]
[null,"Course code","Course name","EC","Course code","Course name","EC"]
[null,{"$f":"VLOOKUP(C56,filo_lijst,2,FALSE)","v":""},"Choose your philosophy course here",{"$f":"VLOOKUP(C56,filo_lijst,3,FALSE)","v":""}]
[]
[]
[null,null,"Free electives below"]
[]
[]
[]
[]
[null,null,"sum:",{"$f":"SUMIFS(D56:D63, G56:G63, \"\")+SUM(G56:G63)","v":0}]
[]
[]
[]
[null,"Total ECTS (120)",null,{"$f":"SUM(D64,D52,D39,D22)","v":105}]
[]
[null,"Honours ('judicium') is awarded  based on the nominal number of 120 EC required for the examination (or more than 120 ec, i.e. courses mentioned above) ; extracurricilar courses do not count for this honours (but will be mentioned on your diploma)."]
[]
[null,"Extra curricular courses (extra above 120 ects)"]
[null,"Course code","Course name","EC"]
[]
[]
[]
[]
[]
[]
[]
[]
[]
[]
[null,null,"sum:",{"$f":"SUM(D74:D83)","v":0}]
[]
[null,"Total ECTS overall:",null,{"$f":"D84+D68","v":105},"EC"]
[]
[null,"Comments:"]
[]
[]
[]
[]
[]
[]
["#scheidingswoordmeteenhashtag"]
["2016"]
[null,"Request for approval Master's  Programme Science - Research: Physics of molecules and materials (Cohort 2016)"]
[null,"This form can be used to submit your master's programme for approval by the examination board"]
[]
[null,"Please complete the form and send via e-mail to: secr.fnwi.examcies@science.ru.nl"]
[]
[]
[null,"Student name:"]
[null,"Student number:"]
[null,"Starting date master:"]
[null,"E-mail:"]
[null,"Phone number:"]
[]
[]
[]
[null,"Compulsory courses specialisation + Career orientation (16 ec)",null,null,"Replaced by:"]
[null,"Course code","Course name","EC","Course code","Course name","EC"]
[null,"NWI-NM009B","Solid State Physics",6]
[null,"NWI-NM089B","Molecular Physics",6]
[null,"NWI-NM001B","Electrodynamics",3]
[null,"NWI-MOL412","Career Orientation",1]
[null,null,"sum:",{"$f":"SUMIFS(D113:D116, G113:G116, \"\",E113:E116,\"\",F113:F116,\"\")+SUM(G113:G116)","v":16}]
[]
[]
[null,"Specialisation related internship(59 ec) (optionally 44 or 89 ec)",null,59]
[null,"Title:"]
[null,"First supervisor:"]
[null,"Department:"]
[null,"Second supervisor:"]
[null,"Department:"]
[null,"Literature thesis (6 ec) NWI-MOL601",null,6]
[null,"Title essay/review:"]
[null,"Supervisor:"]
[null,"Department:"]
[null,"If applicable: courses relevant to the internship (0 to 6 ec)"]
[null,"Course code","Course name","EC","Course code","Course name","EC"]
[]
[]
[null,null,"sum:",{"$f":"SUM(D120)","v":59}]
[]
[null,"Research internship in a second discipline (together with major internship this should add up to 89 ec)"]
[null,{"$f":"\"Minor internship (\" &89-D134&\" ec)\"","v":"Minor internship (30 ec)"},null,30]
[null,"Title:"]
[null,"First supervisor:"]
[null,"Department:"]
[null,"Second supervisor:"]
[null,"Department:"]
[null,"If applicable: Courses relevant to the internship (0 to 6 ec)"]
[null,"Course code","Course name","EC","Course code","Course name","EC"]
[]
[]
[null,null,"sum:",{"$f":"SUM(D137)","v":30}]
[]
[null,"Philosophy (3 ec) + Scientific Master's courses (6 ec) + Free electives (6 ec)",null,null,"Replaced by:"]
[null,"Course code","Course name","EC","Course code","Course name","EC"]
[null,{"$f":"VLOOKUP(C151,filo_lijst,2,FALSE)","v":""},"Choose your philosophy course here",{"$f":"VLOOKUP(C151,filo_lijst,3,FALSE)","v":""}]
[]
[]
[null,null,"Free electives below"]
[]
[]
[]
[]
[null,null,"sum:",{"$f":"SUMIFS(D151:D158, G151:G158, \"\")+SUM(G151:G158)","v":0}]
[]
[]
[]
[null,"Total ECTS (120)",null,{"$f":"SUM(D159,D147,D134,D117)","v":105}]
[]
[null,"Honours ('judicium') is awarded  based on the nominal number of 120 EC required for the examination (or more than 120 ec, i.e. courses mentioned above) ; extracurricilar courses do not count for this honours (but will be mentioned on your diploma)."]
[]
[null,"Extra curricular courses (extra above 120 ects)"]
[null,"Course code","Course name","EC"]
[]
[]
[]
[]
[]
[]
[]
[]
[]
[]
[null,null,"sum:",{"$f":"SUM(D169:D178)","v":0}]
[]
[null,"Total ECTS overall:",null,{"$f":"D179+D163","v":105},"EC"]
[]
[null,"Comments:"]
[]
[]
[]
[]
[]
[]
["#scheidingswoordmeteenhashtag"]
["2017, 2018"]
[null,"Request for approval Master's  Programme Science - Research: Physics of molecules and materials (Cohort 2017-2018)"]
[null,"This form can be used to submit your master's programme for approval by the examination board"]
[]
[null,"Please complete the form and send via e-mail to: secr.fnwi.examcies@science.ru.nl"]
[]
[]
[null,"Student name:"]
[null,"Student number:"]
[null,"Starting date master:"]
[null,"E-mail:"]
[null,"Phone number:"]
[]
[]
[]
[null,"Compulsory courses specialisation + Career orientation (16 ec)",null,null,"Replaced by:"]
[null,"Course code","Course name","EC","Course code","Course name","EC"]
[null,"NWI-NM009B","Solid State Physics",6]
[null,"NWI-NM089B","Molecular Physics",6]
[null,"NWI-NM113","Student Seminar Physics of Mol. and Mat.",3]
[null,"NWI-MOL412","Career Orientation",1]
[null,null,"sum:",{"$f":"SUMIFS(D208:D211, G208:G211, \"\",E208:E211,\"\",F208:F211,\"\")+SUM(G208:G211)","v":16}]
[]
[]
[null,"Specialisation related internship (47-53 or 33-39 ec)"]
[null,"Title:"]
[null,"First supervisor:"]
[null,"Department:"]
[null,"Second supervisor:"]
[null,"Department:"]
[null,"Literature thesis (6 ec) NWI-MOL601",null,6]
[null,"Title essay/review:"]
[null,"Supervisor:"]
[null,"Department:"]
[null,"If applicable: courses relevant to the internship (0 to 6 ec)"]
[null,"Course code","Course name","EC","Course code","Course name","EC"]
[]
[]
[null,null,"sum:",{"$f":"SUM(D215,D221,D227:D228)","v":6},"This should add up to 59 or 45 EC"]
[]
[null,"Research internship in a second discipline (together with major internship this should add up to 89 ec)"]
[null,"Minor internship (24-30 or 38-44 ec)"]
[null,"Title:"]
[null,"First supervisor:"]
[null,"Department:"]
[null,"Second supervisor:"]
[null,"Department:"]
[null,"If applicable: Courses relevant to the internship (0 to 6 ec)"]
[null,"Course code","Course name","EC","Course code","Course name","EC"]
[]
[]
[null,null,"sum:",{"$f":"SUM(D232,D240:D241)","v":0},"This should add up to 30 or 44 EC"]
[]
[null,"Philosophy (3 ec) + Scientific Master's courses (6 ec) + Free electives (6 ec)",null,null,"Replaced by:"]
[null,"Course code","Course name","EC","Course code","Course name","EC"]
[null,{"$f":"VLOOKUP(C246,filo_lijst,2,FALSE)","v":""},"Choose your philosophy course here",{"$f":"VLOOKUP(C246,filo_lijst,3,FALSE)","v":""}]
[]
[]
[null,null,"Free electives below"]
[]
[]
[]
[]
[null,null,"sum:",{"$f":"SUMIFS(D246:D253, G246:G253, \"\")+SUM(G246:G253)","v":0}]
[]
[]
[]
[null,"Total ECTS (120)",null,{"$f":"SUM(D254,D242,D229,D212)","v":22}]
[]
[null,"Honours ('judicium') is awarded  based on the nominal number of 120 EC required for the examination (or more than 120 ec, i.e. courses mentioned above) ; extracurricilar courses do not count for this honours (but will be mentioned on your diploma)."]
[]
[null,"Extra curricular courses (extra above 120 ects)"]
[null,"Course code","Course name","EC"]
[]
[]
[]
[]
[]
[]
[]
[]
[]
[]
[null,null,"sum:",{"$f":"SUM(D264:D273)","v":0}]
[]
[null,"Total ECTS overall:",null,{"$f":"D274+D258","v":22},"EC"]
[]
[null,"Comments:"]
[]
[]
[]
[]
[]
[]
["#scheidingswoordmeteenhashtag"]

{"sheet":"Particle and Astrophysics","index":8,"n_rows":381,"n_cols":7,"rows_kept":381,"cut":false,"hidden":true,"merged":[[374,1,379,6],[329,2,329,6],[330,2,330,6],[331,2,331,6],[332,2,332,6],[355,1,356,6],[318,2,318,6],[319,2,319,6],[327,1,327,2],[327,4,327,5],[328,2,328,6],[314,2,314,6],[315,2,315,6],[316,1,316,2],[316,4,316,5],[317,2,317,6],[310,1,310,2],[310,4,310,5],[311,2,311,6],[312,2,312,6],[313,2,313,6],[293,2,293,6],[294,2,294,6],[295,2,295,6],[296,2,296,6],[297,2,297,6],[32,1,32,2],[32,4,32,5],[8,2,8,6],[9,2,9,6],[10,2,10,6],[11,2,11,6],[12,2,12,6],[26,1,26,2],[26,4,26,5],[27,2,27,6],[28,2,28,6],[29,2,29,6],[30,2,30,6],[31,2,31,6],[90,1,95,6],[33,2,33,6],[34,2,34,6],[35,2,35,6],[43,1,43,2],[43,4,43,5],[44,2,44,6],[45,2,45,6],[46,2,46,6],[47,2,47,6],[48,2,48,6],[71,1,72,6],[126,1,126,2],[126,4,126,5],[104,2,104,6],[105,2,105,6],[106,2,106,6],[107,2,107,6],[108,2,108,6],[120,1,120,2],[120,4,120,5],[121,2,121,6],[122,2,122,6],[123,2,123,6],[124,2,124,6],[125,2,125,6],[184,1,189,6],[127,2,127,6],[128,2,128,6],[129,2,129,6],[140,2,140,6],[141,2,141,6],[142,2,142,6],[165,1,166,6],[137,1,137,2],[137,4,137,5],[138,2,138,6],[139,2,139,6],[221,1,221,2],[221,4,221,5],[198,2,198,6],[199,2,199,6],[200,2,200,6],[201,2,201,6],[202,2,202,6],[215,1,215,2],[215,4,215,5],[216,2,216,6],[217,2,217,6],[218,2,218,6],[219,2,219,6],[220,2,220,6],[279,1,284,6],[222,2,222,6],[223,2,223,6],[224,2,224,6],[232,1,232,2],[232,4,232,5],[233,2,233,6],[234,2,234,6],[235,2,235,6],[236,2,236,6],[237,2,237,6],[260,1,261,6]]}
["Laat deze kolom leeg, behalve de jaartallen en de scheidingswoorden"]
["2014"]
[null,"Request for approval Master's  Programme Science - Research: Particle and Astrophysics (Cohort 2014)"]
[]
[null,"This form can be used to submit your master's programme for approval by the examination board"]
[]
[null,"Please complete the form and send via e-mail to: fnwi.examcies@science.ru.nl"]
[]
[null,"Student name:"]
[null,"Student number:"]
[null,"Starting date master:"]
[null,"E-mail:"]
[null,"Phone number:"]
[]
[]
[]
[null,"Compulsory courses specialisation 15 ec",null,null,"Replaced by:"]
[null,"Course code","Course name","EC","Course code","Course name","EC"]
[null,"NWI-NM026D","Cosmology",6]
[null,"NWI-NM072C","Student Seminar Particle and Astrophysics",2]
[null,"NWI-NM019B","Professional Preparation",1]
[null,"NWI-FFIL211A","Phil. and Foundations of Modern Physics",3]
[null,"NWI-NM001B","Electrodynamics",3]
[null,null,"sum:",{"$f":"SUMIFS(D19:D23, G19:G23, \"\",E19:E23,\"\",F19:F23,\"\")+SUM(G19:G23)","v":15}]
[]
[]
[null,"Major Internship (45 ec, 60 ec or 90ec total)",null,60]
[null,"Title:"]
[null,"Name first supervisor:"]
[null,"Department:"]
[null,"Name 2nd supervisor:"]
[null,"Department:"]
[null,"Literature thesis (6 ec) NWI-MOL601",null,6]
[null,"Title essay/review:"]
[null,"Name supervisor:"]
[null,"Department:"]
[null,"If applicable: courses relevant to the internship (0 to 6 ec)"]
[null,"Course code","Course name","EC","Course code","Course name","EC"]
[]
[]
[null,null,"sum:",{"$f":"SUM(D27)","v":60}]
[]
[null,"Research internship in a second discipline (together with major internship this should add up to 90 ec)"]
[null,{"$f":"\"Specialisation related internship (\" &90 - D41&\" ec)\"","v":"Specialisation related internship (30 ec)"},null,30]
[null,"Title:"]
[null,"First supervisor:"]
[null,"Department:"]
[null,"Second supervisor:"]
[null,"Department:"]
[null,"If applicable: Courses relevant to the internship (0 to 6 ec)"]
[null,"Course code","Course name","EC","Course code","Course name","EC"]
[]
[]
[null,null,"sum:",{"$f":"SUM(D44)","v":30}]
[]
[null,"Philosophy (3 ec) + Scientific Master's courses (6 ec) + Free electives (6 ec)",null,null,"Replaced by:"]
[null,"Course code","Course name","EC","Course code","Course name","EC"]
[null,{"$f":"VLOOKUP(C58,filo_lijst,2,FALSE)","v":""},"Choose your philosophy course here",{"$f":"VLOOKUP(C58,filo_lijst,3,FALSE)","v":""}]
[]
[]
[null,null,"Free electives below"]
[]
[]
[]
[]
[null,null,"sum:",{"$f":"SUMIFS(D58:D65, G58:G65, \"\")+SUM(G58:G65)","v":0}]
[]
[]
[]
[null,"Total ECTS (120)",null,{"$f":"SUM(D66,D54,D41,D24)","v":105}]
[]
[null,"Honours ('judicium') is awarded  based on the nominal number of 120 EC required for the examination (or more than 120 ec, i.e. courses mentioned above) ; extracurricilar courses do not count for this honours (but will be mentioned on your diploma)."]
[]
[null,"Extra curricular courses (extra above 120 ects)"]
[null,"Course code","Course name","EC"]
[]
[]
[]
[]
[]
[]
[]
[]
[]
[]
[null,null,"sum:",{"$f":"SUM(D76:D85)","v":0}]
[]
[null,"Total ECTS overall:",null,{"$f":"D86+D70","v":105},"EC"]
[]
[null,"Comments:"]
[]
[]
[]
[]
[]
[]
["#scheidingswoordmeteenhashtag"]
["2015"]
[null,"Request for approval Master's  Programme Science - Research: Particle and Astrophysics (Cohort 2015)"]
[]
[null,"This form can be used to submit your master's programme for approval by the examination board"]
[]
[null,"Please complete the form and send via e-mail to: secr.fnwi.examcies@science.ru.nl"]
[]
[null,"Student name:"]
[null,"Student number:"]
[null,"Starting date master:"]
[null,"E-mail:"]
[null,"Phone number:"]
[]
[]
[]
[null,"Compulsory courses specialisation 15 ec",null,null,"Replaced by:"]
[null,"Course code","Course name","EC","Course code","Course name","EC"]
[null,"NWI-NM026D","Cosmology",9]
[null,"NWI-NM072E","Student Seminar Particle and Astrophysics",3]
[null,"NWI-NM001B","Electrodynamics",3]
[null,null,"sum:",{"$f":"SUMIFS(D115:D117, G115:G117, \"\",E115:E117,\"\",F115:F117,\"\")+SUM(G115:G117)","v":15}]
[]
[]
[null,"Specialisation related internship(60 ec) (optionally 45 or 90 ec)",null,60]
[null,"Title:"]
[null,"Name first supervisor:"]
[null,"Department:"]
[null,"Name 2nd supervisor:"]
[null,"Department:"]
[null,"Literature thesis (6 ec) NWI-MOL601",null,6]
[null,"Title essay/review:"]
[null,"Name supervisor:"]
[null,"Department:"]
[null,"If applicable: courses relevant to the internship (0 to 6 ec)"]
[null,"Course code","Course name","EC","Course code","Course name","EC"]
[]
[]
[null,null,"sum:",{"$f":"SUM(D121)","v":60}]
[]
[null,"Research internship in a second discipline (together with major internship this should add up to 90 ec)"]
[null,{"$f":"\"Specialisation related internship (\" &90 - D135&\" ec)\"","v":"Specialisation related internship (30 ec)"},null,30]
[null,"Title:"]
[null,"First supervisor:"]
[null,"Department:"]
[null,"Second supervisor:"]
[null,"Department:"]
[null,"If applicable: Courses relevant to the internship (0 to 6 ec)"]
[null,"Course code","Course name","EC","Course code","Course name","EC"]
[]
[]
[null,null,"sum:",{"$f":"SUM(D138)","v":30}]
[]
[null,"Philosophy (3 ec) + Scientific Master's courses (6 ec) + Free electives (6 ec)",null,null,"Replaced by:"]
[null,"Course code","Course name","EC","Course code","Course name","EC"]
[null,{"$f":"VLOOKUP(C152,filo_lijst,2,FALSE)","v":""},"Choose your philosophy course here",{"$f":"VLOOKUP(C152,filo_lijst,3,FALSE)","v":""}]
[]
[]
[null,null,"Free electives below"]
[]
[]
[]
[]
[null,null,"sum:",{"$f":"SUMIFS(D152:D159, G152:G159, \"\")+SUM(G152:G159)","v":0}]
[]
[]
[]
[null,"Total ECTS (120)",null,{"$f":"SUM(D160,D148,D135,D118)","v":105}]
[]
[null,"Honours ('judicium') is awarded  based on the nominal number of 120 EC required for the examination (or more than 120 ec, i.e. courses mentioned above) ; extracurricilar courses do not count for this honours (but will be mentioned on your diploma)."]
[]
[null,"Extra curricular courses (extra above 120 ects)"]
[null,"Course code","Course name","EC"]
[]
[]
[]
[]
[]
[]
[]
[]
[]
[]
[null,null,"sum:",{"$f":"SUM(D170:D179)","v":0}]
[]
[null,"Total ECTS overall:",null,{"$f":"D180+D164","v":105},"EC"]
[]
[null,"Comments:"]
[]
[]
[]
[]
[]
[]
["#scheidingswoordmeteenhashtag"]
["2016"]
[null,"Request for approval Master's  Programme Science - Research: Particle and Astrophysics (Cohort 2016)"]
[]
[null,"This form can be used to submit your master's programme for approval by the examination board"]
[]
[null,"Please complete the form and send via e-mail to: secr.fnwi.examcies@science.ru.nl"]
[]
[null,"Student name:"]
[null,"Student number:"]
[null,"Starting date master:"]
[null,"E-mail:"]
[null,"Phone number:"]
[]
[]
[]
[null,"Compulsory courses specialisation + Career orientation (16 ec)",null,null,"Replaced by:"]
[null,"Course code","Course name","EC","Course code","Course name","EC"]
[null,"NWI-NM026D","Cosmology",9]
[null,"NWI-NM072E","Student Seminar Particle and Astrophysics",3]
[null,"NWI-NM001B","Electrodynamics",3]
[null,"NWI-MOL412","Career Orientation",1]
[null,null,"sum:",{"$f":"SUMIFS(D209:D212, G209:G212, \"\",E209:E212,\"\",F209:F212,\"\")+SUM(G209:G212)","v":16}]
[]
[]
[null,"Specialisation related internship(59 ec) (optionally 44 or 89 ec)",null,59]
[null,"Title:"]
[null,"First supervisor:"]
[null,"Department:"]
[null,"Second supervisor:"]
[null,"Department:"]
[null,"Literature thesis (6 ec) NWI-MOL601",null,6]
[null,"Title essay/review:"]
[null,"Supervisor:"]
[null,"Department:"]
[null,"If applicable: courses relevant to the internship (0 to 6 ec)"]
[null,"Course code","Course name","EC","Course code","Course name","EC"]
[]
[]
[null,null,"sum:",{"$f":"SUM(D216)","v":59}]
[]
[null,"Research internship in a second discipline (together with major internship this should add up to 89 ec)"]
[null,{"$f":"\"Minor internship (\" &89-D230&\" ec)\"","v":"Minor internship (30 ec)"},null,30]
[null,"Title:"]
[null,"First supervisor:"]
[null,"Department:"]
[null,"Second supervisor:"]
[null,"Department:"]
[null,"If applicable: Courses relevant to the internship (0 to 6 ec)"]
[null,"Course code","Course name","EC","Course code","Course name","EC"]
[]
[]
[null,null,"sum:",{"$f":"SUM(D233)","v":30}]
[]
[null,"Philosophy (3 ec) + Scientific Master's courses (6 ec) + Free electives (6 ec)",null,null,"Replaced by:"]
[null,"Course code","Course name","EC","Course code","Course name","EC"]
[null,{"$f":"VLOOKUP(C247,filo_lijst,2,FALSE)","v":""},"Choose your philosophy course here",{"$f":"VLOOKUP(C247,filo_lijst,3,FALSE)","v":""}]
[]
[]
[null,null,"Free electives below"]
[]
[]
[]
[]
[null,null,"sum:",{"$f":"SUMIFS(D247:D254, G247:G254, \"\")+SUM(G247:G254)","v":0}]
[]
[]
[]
[null,"Total ECTS (120)",null,{"$f":"SUM(D255,D243,D230,D213)","v":105}]
[]
[null,"Honours ('judicium') is awarded  based on the nominal number of 120 EC required for the examination (or more than 120 ec, i.e. courses mentioned above) ; extracurricilar courses do not count for this honours (but will be mentioned on your diploma)."]
[]
[null,"Extra curricular courses (extra above 120 ects)"]
[null,"Course code","Course name","EC"]
[]
[]
[]
[]
[]
[]
[]
[]
[]
[]
[null,null,"sum:",{"$f":"SUM(D265:D274)","v":0}]
[]
[null,"Total ECTS overall:",null,{"$f":"D275+D259","v":105},"EC"]
[]
[null,"Comments:"]
[]
[]
[]
[]
[]
[]
["#scheidingswoordmeteenhashtag"]
["2017, 2018"]
[null,"Request for approval Master's Programme Science - Research: Particle and Astrophysics (Cohort 2017)"]
[]
[null,"This form can be used to submit your master's programme for approval by the examination board"]
[]
[null,"Please complete the form and send via e-mail to: secr.fnwi.examcies@science.ru.nl"]
[]
[null,"Student name:"]
[null,"Student number:"]
[null,"Starting date master:"]
[null,"E-mail:"]
[null,"Phone number:"]
[]
[]
[]
[null,"Compulsory courses specialisation + Career orientation (16 ec)",null,null,"Replaced by:"]
[null,"Course code","Course name","EC","Course code","Course name","EC"]
[null,"NWI-NM108","Gravity and the Cosmos",6]
[null,"NWI-NM109","Particles and the Cosmos",6]
[null,"NWI-NM072E","Student Seminar Particle and Astrophysics",3]
[null,"NWI-MOL412","Career Orientation",1]
[null,null,"sum:",{"$f":"SUMIFS(D304:D307, G304:G307, \"\",E304:E307,\"\",F304:F307,\"\")+SUM(G304:G307)","v":16}]
[]
[]
[null,"Specialisation related internship (47-53 or 33-39 ec)"]
[null,"Title:"]
[null,"First supervisor:"]
[null,"Department:"]
[null,"Second supervisor:"]
[null,"Department:"]
[null,"Literature thesis (6 ec) NWI-MOL601",null,6]
[null,"Title essay/review:"]
[null,"Supervisor:"]
[null,"Department:"]
[null,"If applicable: courses relevant to the internship (0 to 6 ec)"]
[null,"Course code","Course name","EC","Course code","Course name","EC"]
[]
[]
[null,null,"sum:",{"$f":"SUM(D311,D317,D323:D324)","v":6},"This should add up to 59 or 45 EC"]
[]
[null,"Research internship in a second discipline (together with major internship this should add up to 89 ec)"]
[null,"Minor internship (24-30 or 38-44 ec)"]
[null,"Title:"]
[null,"First supervisor:"]
[null,"Department:"]
[null,"Second supervisor:"]
[null,"Department:"]
[null,"If applicable: Courses relevant to the internship (0 to 6 ec)"]
[null,"Course code","Course name","EC","Course code","Course name","EC"]
[]
[]
[null,null,"sum:",{"$f":"SUM(D328,D336:D337)","v":0},"This should add up to 30 or 44 EC"]
[]
[null,"Philosophy (3 ec) + Scientific Master's courses (6 ec) + Free electives (6 ec)",null,null,"Replaced by:"]
[null,"Course code","Course name","EC","Course code","Course name","EC"]
[null,{"$f":"VLOOKUP(C342,filo_lijst,2,FALSE)","v":""},"Choose your philosophy course here",{"$f":"VLOOKUP(C342,filo_lijst,3,FALSE)","v":""}]
[]
[]
[null,null,"Free electives below"]
[]
[]
[]
[]
[null,null,"sum:",{"$f":"SUMIFS(D342:D349, G342:G349, \"\")+SUM(G342:G349)","v":0}]
[]
[]
[]
[null,"Total ECTS (120)",null,{"$f":"SUM(D350,D338,D325,D308)","v":22}]
[]
[null,"Honours ('judicium') is awarded  based on the nominal number of 120 EC required for the examination (or more than 120 ec, i.e. courses mentioned above) ; extracurricilar courses do not count for this honours (but will be mentioned on your diploma)."]
[]
[null,"Extra curricular courses (extra above 120 ects)"]
[null,"Course code","Course name","EC"]
[]
[]
[]
[]
[]
[]
[]
[]
[]
[]
[null,null,"sum:",{"$f":"SUM(D360:D369)","v":0}]
[]
[null,"Total ECTS overall:",null,{"$f":"D370+D354","v":22},"EC"]
[]
[null,"Comments:"]
[]
[]
[]
[]
[]
[]
["#scheidingswoordmeteenhashtag"]

{"sheet":"SMI","index":9,"n_rows":186,"n_cols":7,"rows_kept":186,"cut":false,"hidden":true,"merged":[[159,1,160,6],[179,1,184,6],[25,1,25,6],[100,2,100,6],[101,2,101,6],[102,2,102,6],[103,2,103,6],[118,1,118,6],[119,2,119,6],[120,2,120,6],[121,2,121,6],[66,1,67,6],[86,1,91,6],[104,2,104,6],[26,2,26,6],[27,2,27,6],[28,2,28,6],[29,2,29,6],[30,2,30,6],[8,2,8,6],[9,2,9,6],[10,2,10,6],[11,2,11,6],[12,2,12,6],[56,1,56,6],[57,1,58,1],[57,2,58,6],[59,2,59,6],[60,2,60,6],[152,2,152,6],[153,2,153,6],[154,2,154,6],[155,2,155,6],[61,2,61,6],[62,2,62,6],[149,1,149,6],[150,1,151,1],[150,2,151,6],[122,2,122,6],[123,2,123,6]]}
["Laat deze kolom leeg, behalve de jaartallen en de scheidingswoorden"]
["2014, 2015"]
[null,"Request for approval Master's Programme Science - Societal: Science, management and Innovation (Cohorts 2014, 2015)"]
[null,"This form can be used to submit your master's programme for approval by the examination board"]
[]
[]
[null,"Please complete the form and send via e-mail to: fnwi.examcies@science.ru.nl"]
[]
[null,"Student name:"]
[null,"Student number:"]
[null,"Starting date master:"]
[null,"E-mail:"]
[null,"Phone number:"]
[]
[null,"Disciplinary programme Science"]
[]
[null,"Natural Sciences Master's Courses (15EC)",null,null,"Replaced by:"]
[null,"Course code","Course name","EC","Course code","Course name","EC"]
[]
[]
[]
[]
[]
[null,null,"sum:",{"$f":"SUMIFS(D19:D23, G19:G23, \"\",E19:E23,\"\",F19:F23,\"\")+SUM(G19:G23)","v":0}]
[]
[null,"Scietific internship (30 -39 EC, EC above 30 credits are deducted from the required elective space credits)"]
[null,"Title practical work:"]
[null,"Name first supervisor:"]
[null,"Department:"]
[null,"Name 2nd supervisor:"]
[null,"Department:"]
[null,null,"EC:",30]
[]
[null,"Elective space (at most 9 ec ) + Philosophy (3 ec) + Free Electives (6 ec)",null,null,"Replaced by:"]
[null,"Course code","Course name","EC","Course code","Course name","EC"]
[null,{"$f":"VLOOKUP(C36,filo_lijst,2,FALSE)","v":""},"Choose your philosophy course here",{"$f":"VLOOKUP(C36,filo_lijst,3,FALSE)","v":""}]
[]
[]
[]
[]
[]
[null,null,"sum:",{"$f":"SUMIFS(D36:D41, G36:G41, \"\")+SUM(G36:G41)","v":0}]
[null,"Science, Management and Innovation"]
[null,"Do not forget to choose a theme and the theme courses",null,null,"Replaced by:"]
[null,"Course code","Course name","EC","Course code","Course name","EC"]
[null,"NWI-FMT003E","Innovation Management",6]
[null,"NWI-FMT024","Policy and Economics",3]
[null,"NWI-FMT006A","Entrepeneurship: Making a Business Plan",3]
[null,"NWI-FMT019","Methods in Societal Research",3]
[null,"Theme:","Choose a standard theme",null,"Theme:","Name of non standard-theme"]
[]
[]
[]
[null,"NWI-SMISTAGE","SMI Research Project",30]
[null,null,"sum:",{"$f":"SUMIFS(D46:D54, G46:G54, \"\")+SUM(G46:G54)","v":45}]
[]
[null,"Information about the SMI research project"]
[null,"Title:"]
[]
[null,"First supervisor:"]
[null,"Department:"]
[null,"Second supervisor:"]
[null,"Department:"]
[]
[null,"Total ECTS (120)",null,{"$f":"SUM(D42,D55,D32,D24)","v":75}]
[]
[null,"Honours ('judicium') is awarded  based on the nominal number of 120 EC required for the examination (or more than 120 ec, i.e. courses mentioned above) ; extracurricilar courses do not count for this honours (but will be mentioned on your diploma)."]
[]
[]
[null,"Extra curricular courses (extra above 120 ects)"]
[null,"Course code","Course name","EC"]
[]
[]
[]
[]
[]
[]
[]
[]
[]
[]
[null,null,"sum:",{"$f":"SUM(D72:D81)","v":0}]
[]
[null,"Total ECTS overall:",null,{"$f":"D82+D65","v":75},"EC"]
[]
[null,"Comments:"]
[]
[]
[]
[]
[]
[]
["#scheidingswoordmeteenhashtag"]
["2016, 2017, 2018"]
[null,"Request for approval Master's Programme Science - Societal: Science, management and Innovation (Cohorts 2016-2018)"]
[null,"This form can be used to submit your master's programme for approval by the examination board"]
[]
[]
[null,"Please complete the form and send via e-mail to: secr.fnwi.examcies@science.ru.nl"]
[]
[null,"Student name:"]
[null,"Student number:"]
[null,"Starting date master:"]
[null,"E-mail:"]
[null,"Phone number:"]
[]
[null,"Disciplinary programme Science"]
[]
[null,"Natural Sciences Master's Courses and Career Orientation (16 EC)",null,null,"Replaced by:"]
[null,"Course code","Course name","EC","Course code","Course name","EC"]
[]
[]
[]
[]
[]
[null,"NWI-MOL412","Career Orientation",1]
[null,null,"sum:",{"$f":"SUMIFS(D111:D116, G111:G116, \"\",E111:E116,\"\",F111:F116,\"\")+SUM(G111:G116)","v":1}]
[]
[null,"Scietific internship (29 -38 EC, EC above 29 credits are deducted from the required elective space credits)"]
[null,"Title practical work:"]
[null,"Name first supervisor:"]
[null,"Department:"]
[null,"Name 2nd supervisor:"]
[null,"Department:"]
[null,null,"EC:",29]
[]
[null,"Elective space (at most 9 ec ) + Philosophy (3 ec) + Free Electives (6 ec)",null,null,"Replaced by:"]
[null,"Course code","Course name","EC","Course code","Course name","EC"]
[null,{"$f":"VLOOKUP(C129,filo_lijst,2,FALSE)","v":""},"Choose your philosophy course here",{"$f":"VLOOKUP(C129,filo_lijst,3,FALSE)","v":""}]
[]
[]
[]
[]
[]
[null,null,"sum:",{"$f":"SUMIFS(D129:D134, G129:G134, \"\")+SUM(G129:G134)","v":0}]
[null,"Science, Management and Innovation"]
[null,"Do not forget to choose a theme and the theme courses",null,null,"Replaced by:"]
[null,"Course code","Course name","EC","Course code","Course name","EC"]
[null,"NWI-FMT003E","Innovation Management",6]
[null,"NWI-FMT024","Policy and Economics",3]
[null,"NWI-FMT006A","Entrepeneurship: Making a Business Plan",3]
[null,"NWI-FMT019","Methods in Societal Research",3]
[null,"Theme:","Choose a standard theme",null,"Theme:","Name of non standard-theme"]
[]
[]
[]
[null,"NWI-SMISTAGE","SMI Research Project",30]
[null,null,"sum:",{"$f":"SUMIFS(D139:D147, G139:G147, \"\")+SUM(G139:G147)","v":45}]
[]
[null,"Information about the SMI research project"]
[null,"Title:"]
[]
[null,"First supervisor:"]
[null,"Department:"]
[null,"Second supervisor:"]
[null,"Department:"]
[]
[null,"Total ECTS (120)",null,{"$f":"SUM(D135,D148,D125,D117)","v":75}]
[]
[null,"Honours ('judicium') is awarded  based on the nominal number of 120 EC required for the examination (or more than 120 ec, i.e. courses mentioned above) ; extracurricilar courses do not count for this honours (but will be mentioned on your diploma)."]
[]
[]
[null,"Extra curricular courses (extra above 120 ects)"]
[null,"Course code","Course name","EC"]
[]
[]
[]
[]
[]
[]
[]
[]
[]
[]
[null,null,"sum:",{"$f":"SUM(D165:D174)","v":0}]
[]
[null,"Total ECTS overall:",null,{"$f":"D175+D158","v":75},"EC"]
[]
[null,"Comments:"]
[]
[]
[]
[]
[]
[]
["#scheidingswoordmeteenhashtag"]

{"sheet":"SIS","index":10,"n_rows":258,"n_cols":7,"rows_kept":258,"cut":false,"hidden":true,"merged":[[93,2,93,6],[94,2,94,6],[95,2,95,6],[96,2,96,6],[97,2,97,6],[145,1,146,6],[165,1,170,6],[111,1,111,6],[112,2,112,6],[113,2,113,6],[114,2,114,6],[115,2,115,6],[116,2,116,6],[79,1,84,6],[26,2,26,6],[27,2,27,6],[28,2,28,6],[29,2,29,6],[30,2,30,6],[59,1,60,6],[25,1,25,6],[8,2,8,6],[9,2,9,6],[10,2,10,6],[11,2,11,6],[12,2,12,6],[179,2,179,6],[180,2,180,6],[181,2,181,6],[182,2,182,6],[183,2,183,6],[202,2,202,6],[231,1,232,6],[251,1,256,6],[197,1,197,6],[198,2,198,6],[199,2,199,6],[200,2,200,6],[201,2,201,6]]}
["Laat deze kolom leeg, behalve de jaartallen en de scheidingswoorden"]
["2014, 2015"]
[null,"Request for approval Master's Programme Science - Societal: Science in Society (Cohorts 2014, 2015)"]
[null,"This form can be used to submit your master's programme for approval by the examination board"]
[]
[]
[null,"Please complete the form and send via e-mail to: fnwi.examcies@science.ru.nl"]
[]
[null,"Student name:"]
[null,"Student number:"]
[null,"Starting date master:"]
[null,"E-mail:"]
[null,"Phone number:"]
[]
[null,"Disciplinary programme Science"]
[]
[null,"Natural Sciences Master's Courses (15EC)",null,null,"Replaced by:"]
[null,"Course code","Course name","EC","Course code","Course name","EC"]
[]
[]
[]
[]
[]
[null,null,"sum:",{"$f":"SUMIFS(D19:D23, G19:G23, \"\",E19:E23,\"\",F19:F23,\"\")+SUM(G19:G23)","v":0}]
[]
[null,"Scietific internship (30 -39 EC, EC above 30 credits are deducted from the required elective space credits)"]
[null,"Title practical work:"]
[null,"Name first supervisor:"]
[null,"Department:"]
[null,"Name 2nd supervisor:"]
[null,"Department:"]
[null,null,"EC:",30]
[]
[null,"Elective space (at most 9 ec ) + Philosophy (3 ec) + Free Electives (6 ec)",null,null,"Replaced by:"]
[null,"Course code","Course name","EC","Course code","Course name","EC"]
[null,{"$f":"VLOOKUP(C36,filo_lijst,2,FALSE)","v":""},"Choose your philosophy course here",{"$f":"VLOOKUP(C36,filo_lijst,3,FALSE)","v":""}]
[]
[]
[]
[]
[]
[null,null,"sum:",{"$f":"SUMIFS(D36:D41, G36:G41, \"\")+SUM(G36:G41)","v":0}]
[null,"Science in Society"]
[null,null,null,null,"Replaced by:"]
[null,"Course code","Course name","EC","Course code","Course name","EC"]
[null,"NWI-FC002B","Science & Societal interaction",3]
[null,"NWI-FC003B","Research, Responsibility and Uncertainty",3]
[null,"NWI-FC0010C","Framing Knowlegde",3]
[null,"NWI-FC0011C","Knowledge Society",3]
[null,"NWI-FC0013C","Science and Media",3]
[null,"NWI-FC0043B","Science and Public Policy",3]
[null,"NWI-FC0044B","Methods in Societal Research: SIS",3]
[null,null,"SIS electives here"]
[null,null,"SIS electives here"]
[null,"NWI-SISSTAGE","SIS Research Project",30]
[null,null,"sum:",{"$f":"SUMIFS(D46:D55, G46:G55, \"\")+SUM(G46:G55)","v":51}]
[]
[null,"Total ECTS (120)",null,{"$f":"SUM(D42,D56,D32,D24)","v":81}]
[]
[null,"Honours ('judicium') is awarded  based on the nominal number of 120 EC required for the examination (or more than 120 ec, i.e. courses mentioned above) ; extracurricilar courses do not count for this honours (but will be mentioned on your diploma)."]
[]
[]
[null,"Extra curricular courses (extra above 120 ects)"]
[null,"Course code","Course name","EC"]
[]
[]
[]
[]
[]
[]
[]
[]
[]
[]
[null,null,"sum:",{"$f":"SUM(D65:D74)","v":0}]
[]
[null,"Total ECTS overall:",null,{"$f":"D75+D58","v":81},"EC"]
[]
[null,"Comments:"]
[]
[]
[]
[]
[]
[]
["#scheidingswoordmeteenhashtag"]
["2016, 2017"]
[null,"Request for approval Master's Programme Science - Societal: Science in Society (Cohorts 2016 and 2017)"]
[null,"This form can be used to submit your master's programme for approval by the examination board"]
[]
[]
[null,"Please complete the form and send via e-mail to: fnwi.examcies@science.ru.nl"]
[]
[null,"Student name:"]
[null,"Student number:"]
[null,"Starting date master:"]
[null,"E-mail:"]
[null,"Phone number:"]
[]
[null,"Disciplinary programme Science"]
[]
[null,"Natural Sciences Master's Courses and Career Orientation (16 EC)",null,null,"Replaced by:"]
[null,"Course code","Course name","EC","Course code","Course name","EC"]
[]
[]
[]
[]
[]
[null,"NWI-MOL42","Career Orientation",1]
[null,null,"sum:",{"$f":"SUMIFS(D104:D109, G104:G109, \"\",E104:E109,\"\",F104:F109,\"\")+SUM(G104:G109)","v":1}]
[]
[null,"Scietific internship (29 -38 EC, EC above 29 credits are deducted from the required elective space credits)"]
[null,"Title practical work:"]
[null,"Name first supervisor:"]
[null,"Department:"]
[null,"Name 2nd supervisor:"]
[null,"Department:"]
[null,null,"EC:",29]
[]
[null,"Elective space (at most 9 ec ) + Philosophy (3 ec) + Free Electives (6 ec)",null,null,"Replaced by:"]
[null,"Course code","Course name","EC","Course code","Course name","EC"]
[null,{"$f":"VLOOKUP(C122,filo_lijst,2,FALSE)","v":""},"Choose your philosophy course here",{"$f":"VLOOKUP(C122,filo_lijst,3,FALSE)","v":""}]
[]
[]
[]
[]
[]
[null,null,"sum:",{"$f":"SUMIFS(D122:D127, G122:G127, \"\")+SUM(G122:G127)","v":0}]
[null,"Science in Society"]
[null,null,null,null,"Replaced by:"]
[null,"Course code","Course name","EC","Course code","Course name","EC"]
[null,"NWI-FC002B","Science & Societal interaction",3]
[null,"NWI-FC003B","Risk Communication",3]
[null,"NWI-FC0010C","Framing Knowlegde",3]
[null,"NWI-FC0011C","Knowledge Society",3]
[null,"NWI-FC0013C","Science and Media",3]
[null,"NWI-FC0043B","Science and Public Policy",3]
[null,"NWI-FC0044B","Methods in Societal Research: SIS",3]
[null,null,"SIS electives here"]
[null,null,"SIS electives here"]
[null,"NWI-SISSTAGE","SIS Research Project",30]
[null,null,"sum:",{"$f":"SUMIFS(D132:D141, G132:G141, \"\")+SUM(G132:G141)","v":51}]
[]
[null,"Total ECTS (120)",null,{"$f":"SUM(D128,D142,D118,D110)","v":81}]
[]
[null,"Honours ('judicium') is awarded  based on the nominal number of 120 EC required for the examination (or more than 120 ec, i.e. courses mentioned above) ; extracurricilar courses do not count for this honours (but will be mentioned on your diploma)."]
[]
[]
[null,"Extra curricular courses (extra above 120 ects)"]
[null,"Course code","Course name","EC"]
[]
[]
[]
[]
[]
[]
[]
[]
[]
[]
[null,null,"sum:",{"$f":"SUM(D151:D160)","v":0}]
[]
[null,"Total ECTS overall:",null,{"$f":"D161+D144","v":81},"EC"]
[]
[null,"Comments:"]
[]
[]
[]
[]
[]
[]
["#scheidingswoordmeteenhashtag"]
["2018"]
[null,"Request for approval Master's Programme Science - Societal: Science in Society (Cohort 2018)"]
[null,"This form can be used to submit your master's programme for approval by the examination board"]
[]
[]
[null,"Please complete the form and send via e-mail to: fnwi.examcies@science.ru.nl"]
[]
[null,"Student name:"]
[null,"Student number:"]
[null,"Starting date master:"]
[null,"E-mail:"]
[null,"Phone number:"]
[]
[null,"Disciplinary programme Science"]
[]
[null,"Natural Sciences Master's Courses and Career Orientation (16 EC)",null,null,"Replaced by:"]
[null,"Course code","Course name","EC","Course code","Course name","EC"]
[]
[]
[]
[]
[]
[null,"NWI-MOL412","Career Orientation",1]
[null,null,"sum:",{"$f":"SUMIFS(D190:D195, G190:G195, \"\",E190:E195,\"\",F190:F195,\"\")+SUM(G190:G195)","v":1}]
[]
[null,"Scietific internship (29 -38 EC, EC above 29 credits are deducted from the required elective space credits)"]
[null,"Title practical work:"]
[null,"Name first supervisor:"]
[null,"Department:"]
[null,"Name 2nd supervisor:"]
[null,"Department:"]
[null,null,"EC:",29]
[]
[null,"Elective space (at most 9 ec ) + Philosophy (3 ec) + Free Electives (6 ec)",null,null,"Replaced by:"]
[null,"Course code","Course name","EC","Course code","Course name","EC"]
[null,{"$f":"VLOOKUP(C208,filo_lijst,2,FALSE)","v":""},"Choose your philosophy course here",{"$f":"VLOOKUP(C208,filo_lijst,3,FALSE)","v":""}]
[]
[]
[]
[]
[]
[null,null,"sum:",{"$f":"SUMIFS(D208:D213, G208:G213, \"\")+SUM(G208:G213)","v":0}]
[null,"Science in Society"]
[null,null,null,null,"Replaced by:"]
[null,"Course code","Course name","EC","Course code","Course name","EC"]
[null,"NWI-FC002B","Science & Societal interaction",3]
[null,"NWI-FC003B","Risk Communication",3]
[null,"NWI-FC0010C","Framing Knowlegde",3]
[null,"NWI-FC0011C","Knowledge Society",3]
[null,"NWI-FC0013C","Science and Media",3]
[null,"NWI-FC0043B","Science and Public Policy",3]
[null,"NWI-FC0044C","Methods in Societal Research: SIS",6]
[null,null,"SIS electives here"]
[null,null,"SIS electives here"]
[null,"NWI-SISSTAGE","SIS Research Project",30]
[null,null,"sum:",{"$f":"SUMIFS(D218:D227, G218:G227, \"\")+SUM(G218:G227)","v":54}]
[]
[null,"Total ECTS (120)",null,{"$f":"SUM(D214,D228,D204,D196)","v":84}]
[]
[null,"Honours ('judicium') is awarded  based on the nominal number of 120 EC required for the examination (or more than 120 ec, i.e. courses mentioned above) ; extracurricilar courses do not count for this honours (but will be mentioned on your diploma)."]
[]
[]
[null,"Extra curricular courses (extra above 120 ects)"]
[null,"Course code","Course name","EC"]
[]
[]
[]
[]
[]
[]
[]
[]
[]
[]
[null,null,"sum:",{"$f":"SUM(D237:D246)","v":0}]
[]
[null,"Total ECTS overall:",null,{"$f":"D247+D230","v":84},"EC"]
[]
[null,"Comments:"]
[]
[]
[]
[]
[]
[]
["#scheidingswoordmeteenhashtag"]

{"sheet":"Science & Education","index":11,"n_rows":165,"n_cols":7,"rows_kept":165,"cut":false,"hidden":true,"merged":[[137,1,138,6],[157,1,162,6],[107,1,107,6],[108,2,108,6],[109,2,109,6],[110,2,110,6],[111,2,111,6],[112,2,112,6],[93,2,93,6],[26,2,26,6],[27,2,27,6],[28,2,28,6],[29,2,29,6],[30,2,30,6],[55,1,56,6],[75,1,80,6],[89,2,89,6],[90,2,90,6],[91,2,91,6],[92,2,92,6],[25,1,25,6],[8,2,8,6],[9,2,9,6],[10,2,10,6],[11,2,11,6],[12,2,12,6]]}
["Laat deze kolom leeg, behalve de jaartallen en de scheidingswoorden"]
["2014, 2015"]
[null,"Request for approval Master's Programme Science - Societal: Science and Education (Cohorts 2014, 2015)"]
[null,"This form can be used to submit your master's programme for approval by the examination board"]
[]
[]
[null,"Please complete the form and send via e-mail to: fnwi.examcies@science.ru.nl"]
[]
[null,"Student name:"]
[null,"Student number:"]
[null,"Starting date master:"]
[null,"E-mail:"]
[null,"Phone number:"]
[]
[null,"Disciplinary programme Science"]
[]
[null,"Natural Sciences Master's Courses (15EC)",null,null,"Replaced by:"]
[null,"Course code","Course name","EC","Course code","Course name","EC"]
[]
[]
[]
[]
[]
[null,null,"sum:",{"$f":"SUMIFS(D19:D23, G19:G23, \"\",E19:E23,\"\",F19:F23,\"\")+SUM(G19:G23)","v":0}]
[]
[null,"Scietific internship (30 -39 EC, EC above 30 credits are deducted from the required elective space credits)"]
[null,"Title practical work:"]
[null,"Name first supervisor:"]
[null,"Department:"]
[null,"Name 2nd supervisor:"]
[null,"Department:"]
[null,null,"EC:",30]
[]
[null,"Elective space (at most 9 ec ) + Philosophy (3 ec) + Free Electives (6 ec)",null,null,"Replaced by:"]
[null,"Course code","Course name","EC","Course code","Course name","EC"]
[null,{"$f":"VLOOKUP(C36,filo_lijst,2,FALSE)","v":""},"Choose your philosophy course here",{"$f":"VLOOKUP(C36,filo_lijst,3,FALSE)","v":""}]
[]
[]
[]
[]
[]
[null,null,"sum:",{"$f":"SUMIFS(D36:D41, G36:G41, \"\")+SUM(G36:G41)","v":0}]
[null,"Science and Education"]
[null,null,null,null,"Replaced by:"]
[null,"Course code","Course name","EC","Course code","Course name","EC"]
[null,null,"Series of Lectures",5]
[null,null,"Self-evaluation 1",10]
[null,null,"Supervised Internship",15]
[null,null,"Design and Research",10]
[null,null,"Self-Evauluation 2",5]
[null,null,"Inedependent Internship",15]
[null,null,"sum:",{"$f":"SUMIFS(D46:D51, G46:G51, \"\")+SUM(G46:G51)","v":60}]
[]
[null,"Total ECTS (120)",null,{"$f":"SUM(D42,D52,D32,D24)","v":90}]
[]
[null,"Honours ('judicium') is awarded  based on the nominal number of 120 EC required for the examination (or more than 120 ec, i.e. courses mentioned above) ; extracurricilar courses do not count for this honours (but will be mentioned on your diploma)."]
[]
[]
[null,"Extra curricular courses (extra above 120 ects)"]
[null,"Course code","Course name","EC"]
[]
[]
[]
[]
[]
[]
[]
[]
[]
[]
[null,null,"sum:",{"$f":"SUM(D61:D70)","v":0}]
[]
[null,"Total ECTS overall:",null,{"$f":"D71+D54","v":90},"EC"]
[]
[null,"Comments:"]
[]
[]
[]
[]
[]
[]
["#scheidingswoordmeteenhashtag"]
["2016, 2017, 2018"]
[null,"Request for approval Master's Programme Science - Societal: Science in Society (Cohorts 2016 - 2018)"]
[null,"This form can be used to submit your master's programme for approval by the examination board"]
[]
[]
[null,"Please complete the form and send via e-mail to: fnwi.examcies@science.ru.nl"]
[]
[null,"Student name:"]
[null,"Student number:"]
[null,"Starting date master:"]
[null,"E-mail:"]
[null,"Phone number:"]
[]
[null,"Disciplinary programme Science"]
[]
[null,"Natural Sciences Master's Courses and Career Orientation (16 EC)",null,null,"Replaced by:"]
[null,"Course code","Course name","EC","Course code","Course name","EC"]
[]
[]
[]
[]
[]
[null,"NWI-MOL42","Career Orientation",1]
[null,null,"sum:",{"$f":"SUMIFS(D100:D105, G100:G105, \"\",E100:E105,\"\",F100:F105,\"\")+SUM(G100:G105)","v":1}]
[]
[null,"Scietific internship (29 -38 EC, EC above 29 credits are deducted from the required elective space credits)"]
[null,"Title practical work:"]
[null,"Name first supervisor:"]
[null,"Department:"]
[null,"Name 2nd supervisor:"]
[null,"Department:"]
[null,null,"EC:",29]
[]
[null,"Elective space (at most 9 ec ) + Philosophy (3 ec) + Free Electives (6 ec)",null,null,"Replaced by:"]
[null,"Course code","Course name","EC","Course code","Course name","EC"]
[null,{"$f":"VLOOKUP(C118,filo_lijst,2,FALSE)","v":""},"Choose your philosophy course here",{"$f":"VLOOKUP(C118,filo_lijst,3,FALSE)","v":""}]
[]
[]
[]
[]
[]
[null,null,"sum:",{"$f":"SUMIFS(D118:D123, G118:G123, \"\")+SUM(G118:G123)","v":0}]
[null,"Science and Education"]
[null,null,null,null,"Replaced by:"]
[null,"Course code","Course name","EC","Course code","Course name","EC"]
[null,null,"Series of Lectures",5]
[null,null,"Self-evaluation 1",10]
[null,null,"Supervised Internship",15]
[null,null,"Design and Research",10]
[null,null,"Self-Evauluation 2",5]
[null,null,"Inedependent Internship",15]
[null,null,"sum:",{"$f":"SUMIFS(D128:D133, G128:G133, \"\")+SUM(G128:G133)","v":60}]
[]
[null,"Total ECTS (120)",null,{"$f":"SUM(D124,D134,D114,D106)","v":90}]
[]
[null,"Honours ('judicium') is awarded  based on the nominal number of 120 EC required for the examination (or more than 120 ec, i.e. courses mentioned above) ; extracurricilar courses do not count for this honours (but will be mentioned on your diploma)."]
[]
[]
[null,"Extra curricular courses (extra above 120 ects)"]
[null,"Course code","Course name","EC"]
[]
[]
[]
[]
[]
[]
[]
[]
[]
[]
[null,null,"sum:",{"$f":"SUM(D143:D152)","v":0}]
[]
[null,"Total ECTS overall:",null,{"$f":"D153+D136","v":90},"EC"]
[]
[null,"Comments:"]
[]
[]
[]
[]
[]
[]
["#scheidingswoordmeteenhashtag"]
[2017]

{"sheet":"Selections","index":12,"n_rows":21,"n_cols":8,"rows_kept":21,"cut":false,"hidden":true,"merged":[]}
[]
[null,"Filosofie"]
[null,"Choose your philosophy course here","","",null,null,"Cohort","Specialisatie"]
[null,"Bioethics for Lifescientists","NWI-FFIL203B",3,null,null,"Please Select…","Please Select…"]
[null,"Environmental Ethics","NWI-FFIL209B",3,null,null,2014,"Chemistry for life"]
[null,"Evolution and the Mind","NWI-FFIL202A",3,null,null,2015,"Molecular Chemistry"]
[null,"Philosophy of Water Management","NWI-FFIL212",3,null,null,2016,"Physical Chemistry"]
[null,"Science and Literature","NWI-FFIL205A",3,null,null,"2017","Neuroscience"]
[null,"Science and Metaphysics","NWI-FFIL214",3,null,null,"2018","Medical Epigenomics"]
[null,"Mathematics, Zeitgeist and Worldview","NWI-FFIL300C",3,null,null,null,"Functional Genomics"]
[null,"Upgrading the Human","NWI-FFIL215",3,null,null,null,"Physics of Mol. and Mat."]
[null,"Transformative Role of Physics","NWI-FFIL211B",3,null,null,null,"Particle and Astrophysics"]
[null,"Imagining the Anthropocene","NWI-FFIL216",3,null,null,null,"SMI"]
[null,null,null,null,null,null,null,"SIS"]
[null,"Physical Chemistry Choice",null,null,null,null,null,"Science & Education"]
[null,"Choose one of these courses","",""]
[null,"Quantum Chemistry","NWI-MOL406",3]
[null,"Molecular Modelling","MWI-SM297",3]
[null,null,null,null,null,null,"Choose a standard theme",""]
[null,null,null,null,null,null,"Health",12]
[null,null,null,null,null,null,"Climate and energy",12]